Workbook

Sheet DCF
E6: Ticker | F6: BB CN | J6: Currency | K6: Trading | N6: =IFERROR(IF(OR(_xll.BDP(TKR,"EQY_FUND_IND","Fill=B")="Bank",_xll.BDP(TKR,"EQY_FUND_IND","Fill=B")="Financial"),"WARNING: This model is not suitable for financial institutions. See DDM<GO> or EQRV<GO>.",VLOOKUP(_xll.BDP(TKR,"MARKET_STATUS","Fill=B"),Data!$L$4:$N$58,3,FALSE)),"") -> 
E8: Name | F8: =_xll.BDP(TKR,"SECURITY_NAME","Fill=B") -> BlackBerry Ltd | J8: Data | K8: Adjusted (If available) | N8: Summary Analysis | Q8: Input Calculation | T8: Output Analysis | W8: =_xll.BDP("EUR CURNCY","TIME") -> 09:42:25
E10: ="In Millions of "&CCY -> In Millions of CAD | I10: =IF(ISBLANK(I52),"",I52) -> Févr 10 A | J10: =IF(ISBLANK(J52),"",J52) -> Févr 11 A | K10: Févr 12 A | L10: Févr 13 A | M10: Févr 14 A | N10: Févr 15 A | O10: Févr 16 E | P10: Févr 17 E | Q10: Févr 18 E | R10: Févr 19 E | S10: Févr 20 E | T10: Févr 21 E | U10: Year 5
E12: Summary Analysis
E15: ="In Millions of "&CCY -> In Millions of CAD | I15: =IF(ISBLANK(I52),"",I52) -> Févr 10 A | J15: Févr 11 A | K15: Févr 12 A | L15: Févr 13 A | M15: Févr 14 A | N15: Févr 15 A | O15: Févr 16 E | P15: Févr 17 E | Q15: Févr 18 E | R15: Févr 19 E | S15: Févr 20 E | T15: Févr 21 E | U15: Trend
E16: =IF(ISBLANK(E55),"",E55) -> Revenue (Estimate Comparable) | I16: =I55 -> 16617.00685 | J16: 20323.48748 | K16: 18356.39753 | L16: 11061.33929 | M16: 7128.981704 | N16: 3754.077392 | O16: 2855.124 | P16: 2643.545 | Q16: 2216.876 | R16: 1270.204776 | S16: 850.7725731 | T16: 640.2112126
E17: =IF(ISBLANK(E57),"",E57) -> % YoY Growth | I17: =IF(ISBLANK(I57),"",I57) ->  | J17: =J57 -> 0.2230534458 | K17: =K57 -> -0.0967889964 | L17: -0.3974123044 | M17: -0.3555046528 | N17: -0.4734062244 | O17: -0.239460538 | P17: -0.0741050126 | Q17: -0.1614003166 | R17: -0.427029398 | S17: -0.3302083342 | T17: -0.2474942977
E18: =IF(ISBLANK(E211),"",E211) -> EBITDA | I18: =I211 -> 4461.944551 | J18: 5682.449959 | K18: 3471.330849 | L18: 1236.696292 | M18: -2755.116517 | N18: 757.5694407 | O18: 472.997 | P18: 412.29 | Q18: 267.751 | R18: 153.4134517 | S18: 102.7550514 | T18: 77.32376208
E19: =IF(ISBLANK(E212),"",E212) -> % Margin | I19: =I212 -> 0.2685167426 | J19: 0.2796001407 | K19: 0.189107413 | L19: 0.111803486 | M19: -0.3864670483 | N19: 0.2017991004 | O19: 0.1656660096 | P19: 0.1559610296 | Q19: 0.120778519 | R19: 0.120778519 | S19: 0.120778519 | T19: 0.120778519
E20: =RIGHT(E197,LEN(E197)-4) -> Free Cash Flow | I20: =IF(ISBLANK(I197),"",I197) -> 1995.644258 | J20: =J197 -> 3223.144831 | K20: 1988.632893 | L20: 1439.015077 | M20: -2088.841239 | N20: 1118.385687 | O20: 586.4326113 | P20: 490.2318488 | Q20: 283.9135371 | R20: 123.3415072 | S20: 51.90308358 | T20: -3.672238296
E21: % Margin | I21: =IF(ISBLANK(I198),"",I198) -> 0.1200964937 | J21: =J198 -> 0.1585921134 | K21: =K198 -> 0.1083345951 | L21: 0.1300941089 | M21: -0.2930069575 | N21: 0.2979122619 | O21: 0.2053965472 | P21: 0.1854448662 | Q21: 0.1280692006 | R21: 0.09710363987 | S21: 0.06100700143 | T21: -0.005735979351
F23: Perpetuity Growth Method | N23: EBITDA Multiple Method
F24: =F243 -> Current Price (CAD) | J24: =K243 -> 10.15 | N24: =O243 -> Current Price (CAD) | R24: =T243 -> 10.15
F25: Consensus Price Target | J25: =_xll.BDP(TKR,"BEST_TARGET_PRICE","Fill=NA") -> 9.303146362 | N25: Consensus Price Target | R25: =_xll.BDP(TKR,"BEST_TARGET_PRICE","Fill=NA") -> 9.303146362
F26: ="DCF "&F242 -> DCF Estimated Value per Share (CAD) | J26: =J242 -> 4.783340734 | N26: ="DCF "&O242 -> DCF Estimated Value per Share (CAD) | R26: =S242 -> 5.020602871
F27: ="DCF "&F244 -> DCF Estimated Upside | J27: =J244 -> -0.5287349031 | N27: ="DCF "&O244 -> DCF Estimated Upside | R27: =S244 -> -0.5053593231
J29: =J250 -> Perpetuity Growth | R29: =S250 -> Terminal EBITDA Multiple
H30: =H260 -> 0.01 | I30: 0.015 | J30: 0.02 | K30: 0.025 | L30: 0.03 | P30: =Q260 -> 1.028862043 | Q30: 2.528862043 | R30: 4.028862043 | S30: 5.528862043 | T30: 7.028862043
G31: =G261 -> 0.1104074931 | H31: 4.807819251 | I31: 4.815541675 | J31: 4.824118279 | K31: 4.833699081 | L31: 4.844471413 | O31: =P261 -> 0.1104074931 | P31: 4.771723243 | Q31: 4.914504699 | R31: 5.057286156 | S31: 5.200067612 | T31: 5.342849069
F32: =E254 -> Discount | G32: =G262 -> 0.1154074931 | H32: 4.788625657 | I32: 4.795490964 | J32: 4.803075848 | K32: 4.811499699 | L32: 4.820909862 | N32: =N254 -> Discount | O32: =P262 -> 0.1154074931 | P32: 4.759547986 | Q32: 4.899157797 | R32: 5.038767608 | S32: 5.178377418 | T32: 5.317987229
F33: =E255 -> Rate | G33: =G263 -> 0.1204074931 | H33: 4.770464375 | I33: 4.776597159 | J33: 4.783340734 | K33: 4.790791127 | L33: 4.799065609 | N33: =N255 -> Rate | O33: =P263 -> 0.1204074931 | P33: 4.747558204 | Q33: 4.884080537 | R33: 5.020602871 | S33: 5.157125205 | T33: 5.293647538
F34: =E256 -> (WACC) | G34: =G264 -> 0.1254074931 | H34: 4.753213336 | I34: 4.758715836 | J34: 4.764740357 | K34: 4.771364885 | L34: 4.778683754 | N34: =N256 -> (WACC) | O34: =P264 -> 0.1254074931 | P34: 4.735749739 | Q34: 4.86926617 | R34: 5.0027826 | S34: 5.136299031 | T34: 5.269815462
G35: =G265 -> 0.1304074931 | H35: 4.736770484 | I35: 4.741727316 | J35: 4.747133105 | K35: 4.753051741 | L35: 4.759559839 | O35: =P265 -> 0.1304074931 | P35: 4.724118554 | Q35: 4.854708153 | R35: 4.985297752 | S35: 5.115887351 | T35: 5.24647695
H36: =H268 -> 0.01 | I36: 0.015 | J36: 0.02 | K36: 0.025 | L36: 0.03 | P36: =Q268 -> 1.028862043 | Q36: 2.528862043 | R36: 4.028862043 | S36: 5.528862043 | T36: 7.028862043
G37: =G269 -> 0.1104074931 | H37: -0.5263232265 | I37: -0.5255623965 | J37: -0.5247174109 | K37: -0.5237734896 | L37: -0.522712176 | O37: =P269 -> 0.1104074931 | P37: -0.5298794835 | Q37: -0.5158123449 | R37: -0.5017452063 | S37: -0.4876780678 | T37: -0.4736109292
G38: =G270 -> 0.1154074931 | H38: -0.5282142209 | I38: -0.527537836 | J38: -0.5267905568 | K38: -0.5259606208 | L38: -0.5250335111 | O38: =P270 -> 0.1154074931 | P38: -0.5310790161 | Q38: -0.517324355 | R38: -0.5035696938 | S38: -0.4898150327 | T38: -0.4760603715
G39: =G271 -> 0.1204074931 | H39: -0.5300035099 | I39: -0.5293992946 | J39: -0.5287349031 | K39: -0.5280008742 | L39: -0.5271856543 | O39: =P271 -> 0.1204074931 | P39: -0.5322602755 | Q39: -0.5188097993 | R39: -0.5053593231 | S39: -0.4919088468 | T39: -0.4784583706
G40: =G272 -> 0.1254074931 | H40: -0.5317031196 | I40: -0.5311610014 | J40: -0.5305674525 | K40: -0.5299147896 | L40: -0.5291937188 | O40: =P272 -> 0.1254074931 | P40: -0.5334236711 | Q40: -0.5202693429 | R40: -0.5071150147 | S40: -0.4939606866 | T40: -0.4808063584
G41: =G273 -> 0.1304074931 | H41: -0.533323105 | I41: -0.5328347472 | J41: -0.5323021571 | K41: -0.5317190403 | L41: -0.5310778484 | O41: =P273 -> 0.1304074931 | P41: -0.5345696006 | Q41: -0.5217036302 | R41: -0.5088376599 | S41: -0.4959716896 | T41: -0.4831057192
E43: Input Calculation
K45: Input | L45: Peers | M45: Px Implied | N45: Tgt Implied | O45: Default | P45: Current Choice
G47: Weighted Average Cost of Capital | L47: =IFERROR('Additional Data'!L43,"") -> 0.080856748 | O47: =IFERROR(_xll.BDP(TKR,"WACC")/100,"") -> 0.1204074931 | P47: =IF(ISBLANK(K47),O47,K47) -> 0.1204074931
G48: Perpetuity Growth Rate | M48: =($P47*((J24*K241+SUM(K237:K238)-O197*O207*O209-P197*P207*P209-Q197*Q207*Q209-R197*R207*R209-S197*S207*S209-T197*T207*T209)*(1+$P47)^5)-$K$225)/($K$225+((((J24*K241)+SUM(K237:K238))-O197*O207*O209-P197*P207*P209-Q197*Q207*Q209-R197*R207*R209-S197*S207*S209-T197*T207*T209)*(1+$P47)^5)) -> 0.1178163054 | N48: =($P47*((J25*K241+SUM(K237:K238)-O197*O207*O209-P197*P207*P209-Q197*Q207*Q209-R197*R207*R209-S197*S207*S209-T197*T207*T209)*(1+$P47)^5)-$K$225)/($K$225+((((J25*K241)+SUM(K237:K238))-O197*O207*O209-P197*P207*P209-Q197*Q207*Q209-R197*R207*R209-S197*S207*S209-T197*T207*T209)*(1+$P47)^5)) -> 0.1173456124 | O48: ='Additional Data'!D9 -> 0.02 | P48: =IF(ISBLANK(K48),O48,K48) -> 0.02 | Q48: (Perpetuity Growth Method only)
G49: Exit Enterprise Value / EBITDA | L49: ='Additional Data'!K43 -> 6.450255893 | M49: =((R24*T241+SUM(T237:T238)-O197*O207*O209-P197*P207*P209-Q197*Q207*Q209-R197*R207*R209-S197*S207*S209-T197*T207*T209)*(1+P47)^5)/T225 -> 60.38664241 | N49: =((R25*T241+SUM(T237:T238)-O197*O207*O209-P197*P207*P209-Q197*Q207*Q209-R197*R207*R209-S197*S207*S209-T197*T207*T209)*(1+P47)^5)/T225 -> 51.08208086 | O49: =IF(IFERROR(_xll.BDP(TKR,"EV_TO_T12M_EBITDA","EQY_FUND_RELATIVE_PERIOD",PER)/1,IFERROR(_xll.BDP(TKR,"EV_TO_T12M_EBITDA","EQY_FUND_RELATIVE_PERIOD","-0FY")/1,'Additional Data'!K43))>'Additional Data'!K45,'Additional Data'!K45,IFERROR(_xll.BDP(TKR,"EV_TO_T12M_EBITDA","EQY_FUND_RELATIVE_PERIOD",PER)/1,IFERROR(_xll.BDP(TKR,"EV_TO_T12M_EBITDA","EQY_FUND_RELATIVE_PERIOD","-0FY")/1,'Additional Data'!K43))) -> 4.028862043 | P49: =IF(ISBLANK(K49),O49,K49) -> 4.028862043 | Q49: (EBITDA Multiple Method only)
E52: ="In Millions of "&CCY -> In Millions of CAD | I52: =PROPER(TEXT(_xll.BDP(TKR,"BEST_PERIOD_END_DATE","BEST_FPERIOD_OVERRIDE",I$53),REPT(Dates_M,3)&" "&REPT(Dates_Y,2)))&" A" -> Févr 10 A | J52: =PROPER(TEXT(_xll.BDP(TKR,"BEST_PERIOD_END_DATE","BEST_FPERIOD_OVERRIDE",J$53),REPT(Dates_M,3)&" "&REPT(Dates_Y,2)))&" A" -> Févr 11 A | K52: =PROPER(TEXT(_xll.BDP(TKR,"BEST_PERIOD_END_DATE","BEST_FPERIOD_OVERRIDE",K$53),REPT(Dates_M,3)&" "&REPT(Dates_Y,2)))&" A" -> Févr 12 A | L52: =PROPER(TEXT(_xll.BDP(TKR,"BEST_PERIOD_END_DATE","BEST_FPERIOD_OVERRIDE",L$53),REPT(Dates_M,3)&" "&REPT(Dates_Y,2)))&" A" -> Févr 13 A | M52: =PROPER(TEXT(_xll.BDP(TKR,"BEST_PERIOD_END_DATE","BEST_FPERIOD_OVERRIDE",M$53),REPT(Dates_M,3)&" "&REPT(Dates_Y,2)))&" A" -> Févr 14 A | N52: =PROPER(TEXT(_xll.BDP(TKR,"BEST_PERIOD_END_DATE","BEST_FPERIOD_OVERRIDE",N$53),REPT(Dates_M,3)&" "&REPT(Dates_Y,2)))&" A" -> Févr 15 A | O52: =PROPER(TEXT(_xll.BDP(TKR,"BEST_PERIOD_END_DATE","BEST_FPERIOD_OVERRIDE",O$53),REPT(Dates_M,3)&" "&REPT(Dates_Y,2)))&" E" -> Févr 16 E | P52: =PROPER(TEXT(_xll.BDP(TKR,"BEST_PERIOD_END_DATE","BEST_FPERIOD_OVERRIDE",P$53),REPT(Dates_M,3)&" "&REPT(Dates_Y,2)))&" E" -> Févr 17 E | Q52: =PROPER(TEXT(_xll.BDP(TKR,"BEST_PERIOD_END_DATE","BEST_FPERIOD_OVERRIDE",Q$53),REPT(Dates_M,3)&" "&REPT(Dates_Y,2)))&" E" -> Févr 18 E | R52: =PROPER(TEXT(_xll.BDP(TKR,"BEST_PERIOD_END_DATE","BEST_FPERIOD_OVERRIDE",R$53),REPT(Dates_M,3)&" "&REPT(Dates_Y,2)))&" E" -> Févr 19 E | S52: =PROPER(TEXT(_xll.BDP(TKR,"BEST_PERIOD_END_DATE","BEST_FPERIOD_OVERRIDE",S$53),REPT(Dates_M,3)&" "&REPT(Dates_Y,2)))&" E" -> Févr 20 E | T52: =PROPER(TEXT(_xll.BDP(TKR,"BEST_PERIOD_END_DATE","BEST_FPERIOD_OVERRIDE",T$53),REPT(Dates_M,3)&" "&REPT(Dates_Y,2)))&" E" -> Févr 21 E | U52: Year 5
I53: -5FY | J53: -4FY | K53: -3FY | L53: -2FY | M53: -1FY | N53: -0FY | O53: 1FY | P53: 2FY | Q53: 3FY | R53: 4FY | S53: 5FY | T53: 6FY
O54: 1 | P54: 2 | Q54: 3 | R54: 4 | S54: 5
E55: Revenue (Estimate Comparable) | I55: =IFERROR(_xll.BDP(TKR,"IS_COMP_SALES","EQY_FUND_RELATIVE_PERIOD",I$53,"EQY_FUND_CRNCY",CCY)/1,_xll.BDP(TKR,"SALES_REV_TURN","EQY_FUND_RELATIVE_PERIOD",I$53,"EQY_FUND_CRNCY",CCY,"FA_ADJUSTED=Y","Fill=0")) -> 16617.00685 | J55: =IFERROR(_xll.BDP(TKR,"IS_COMP_SALES","EQY_FUND_RELATIVE_PERIOD",J$53,"EQY_FUND_CRNCY",CCY)/1,_xll.BDP(TKR,"SALES_REV_TURN","EQY_FUND_RELATIVE_PERIOD",J$53,"EQY_FUND_CRNCY",CCY,"FA_ADJUSTED=Y","Fill=0")) -> 20323.48748 | K55: =IFERROR(_xll.BDP(TKR,"IS_COMP_SALES","EQY_FUND_RELATIVE_PERIOD",K$53,"EQY_FUND_CRNCY",CCY)/1,_xll.BDP(TKR,"SALES_REV_TURN","EQY_FUND_RELATIVE_PERIOD",K$53,"EQY_FUND_CRNCY",CCY,"FA_ADJUSTED=Y","Fill=0")) -> 18356.39753 | L55: =IFERROR(_xll.BDP(TKR,"IS_COMP_SALES","EQY_FUND_RELATIVE_PERIOD",L$53,"EQY_FUND_CRNCY",CCY)/1,_xll.BDP(TKR,"SALES_REV_TURN","EQY_FUND_RELATIVE_PERIOD",L$53,"EQY_FUND_CRNCY",CCY,"FA_ADJUSTED=Y","Fill=0")) -> 11061.33929 | M55: =IFERROR(_xll.BDP(TKR,"IS_COMP_SALES","EQY_FUND_RELATIVE_PERIOD",M$53,"EQY_FUND_CRNCY",CCY)/1,_xll.BDP(TKR,"SALES_REV_TURN","EQY_FUND_RELATIVE_PERIOD",M$53,"EQY_FUND_CRNCY",CCY,"FA_ADJUSTED=Y","Fill=0")) -> 7128.981704 | N55: =IFERROR(_xll.BDP(TKR,"IS_COMP_SALES","EQY_FUND_RELATIVE_PERIOD",N$53,"EQY_FUND_CRNCY",CCY)/1,_xll.BDP(TKR,"SALES_REV_TURN","EQY_FUND_RELATIVE_PERIOD",N$53,"EQY_FUND_CRNCY",CCY,"FA_ADJUSTED=Y","Fill=0")) -> 3754.077392 | O55: =N55*(1+O$57) -> 2855.124 | P55: 2643.545 | Q55: 2216.876 | R55: 1270.204776 | S55: 850.7725731 | T55: 640.2112126
E56: =IF(AND(ADJ="Y",ADJ_AVA="Y"),"Revenue (Adjusted)","Revenue (GAAP)") -> Revenue (Adjusted) | I56: =_xll.BDP(TKR,"SALES_REV_TURN","EQY_FUND_RELATIVE_PERIOD",I$53,"EQY_FUND_CRNCY",CCY,"FA_ADJUSTED",ADJ,"Fill=0") -> 16617.00685 | J56: =_xll.BDP(TKR,"SALES_REV_TURN","EQY_FUND_RELATIVE_PERIOD",J$53,"EQY_FUND_CRNCY",CCY,"FA_ADJUSTED",ADJ,"Fill=0") -> 20323.48748 | K56: =_xll.BDP(TKR,"SALES_REV_TURN","EQY_FUND_RELATIVE_PERIOD",K$53,"EQY_FUND_CRNCY",CCY,"FA_ADJUSTED",ADJ,"Fill=0") -> 18272.09378 | L56: =_xll.BDP(TKR,"SALES_REV_TURN","EQY_FUND_RELATIVE_PERIOD",L$53,"EQY_FUND_CRNCY",CCY,"FA_ADJUSTED",ADJ,"Fill=0") -> 11061.33929 | M56: =_xll.BDP(TKR,"SALES_REV_TURN","EQY_FUND_RELATIVE_PERIOD",M$53,"EQY_FUND_CRNCY",CCY,"FA_ADJUSTED",ADJ,"Fill=0") -> 7128.981704 | N56: =_xll.BDP(TKR,"SALES_REV_TURN","EQY_FUND_RELATIVE_PERIOD",N$53,"EQY_FUND_CRNCY",CCY,"FA_ADJUSTED",ADJ,"Fill=0") -> 3754.077392
A57: 16 | E57: % YoY Growth | H57: Edit Row | J57: =IFERROR(J55/I55-1,"") -> 0.2230534458 | K57: -0.0967889964 | L57: -0.3974123044 | M57: -0.3555046528 | N57: -0.4734062244 | O57: =IF(ISNUMBER(O$61),O$61,IF(ISNUMBER(O$62),O$62,IF(ISNUMBER(O$63),O$63,""))) -> -0.239460538 | P57: -0.0741050126 | Q57: -0.1614003166 | R57: -0.427029398 | S57: -0.3302083342 | T57: -0.2474942977 | W57: 10 | X57: 5
N59: Row # of choice | O59: =IF($O$61<>"",1, IF($O$62<>"",2,3 )) -> 1 | P59: =IF($P$61<>"",1, IF($P$62<>"",2,3 )) -> 1 | Q59: =IF($Q$61<>"",1, IF($Q$62<>"",2,3 )) -> 1 | R59: =IF($R$61<>"",1, IF($R$62<>"",2,3 )) -> 2 | S59: =IF($S$61<>"",1, IF($S$62<>"",2,3 )) -> 2 | T59: =IF($T$61<>"",1, IF($T$62<>"",2,3 )) -> 2
O60: Click on a cell below to select assumption (selected cells are highlighted in blue)
B61: 1 | H61: BEst Consensus Revenue | O61: =IFERROR((_xll.BDP(TKR,"BEST_SALES","BEST_FPERIOD_OVERRIDE",O$53,"EQY_FUND_CRNCY",CCY)/N55)-1,"") -> -0.239460538 | P61: =IFERROR((_xll.BDP(TKR,"BEST_SALES","BEST_FPERIOD_OVERRIDE",P$53,"EQY_FUND_CRNCY",CCY)/O55)-1,"") -> -0.0741050126 | Q61: =IFERROR((_xll.BDP(TKR,"BEST_SALES","BEST_FPERIOD_OVERRIDE",Q$53,"EQY_FUND_CRNCY",CCY)/P55)-1,"") -> -0.1614003166 | R61: =IFERROR((_xll.BDP(TKR,"BEST_SALES","BEST_FPERIOD_OVERRIDE",R$53,"EQY_FUND_CRNCY",CCY)/Q55)-1,"") ->  | S61: =IFERROR((_xll.BDP(TKR,"BEST_SALES","BEST_FPERIOD_OVERRIDE",S$53,"EQY_FUND_CRNCY",CCY)/R55)-1,"") ->  | T61: =IFERROR((_xll.BDP(TKR,"BEST_SALES","BEST_FPERIOD_OVERRIDE",T$53,"EQY_FUND_CRNCY",CCY)/S55)-1,"") -> 
B62: 1 | H62: 5 Year Moving Trend | O62: =IFERROR(SLOPE(DCF!I55:N55,DCF!$O$54:$T$54)/AVERAGE(DCF!I55:N55),"") -> -0.2193505447 | P62: =IFERROR(SLOPE(DCF!J55:O55,DCF!$O$54:$T$54)/AVERAGE(DCF!J55:O55),"") -> -0.4193445197 | Q62: =IFERROR(SLOPE(DCF!K55:P55,DCF!$O$54:$T$54)/AVERAGE(DCF!K55:P55),"") -> -0.50188109 | R62: =IFERROR(SLOPE(DCF!L55:Q55,DCF!$O$54:$T$54)/AVERAGE(DCF!L55:Q55),"") -> -0.427029398 | S62: =IFERROR(SLOPE(DCF!M55:R55,DCF!$O$54:$T$54)/AVERAGE(DCF!M55:R55),"") -> -0.3302083342 | T62: =IFERROR(SLOPE(DCF!N55:S55,DCF!$O$54:$T$54)/AVERAGE(DCF!N55:S55),"") -> -0.2474942977
B63: 1 | H63: BEst Consensus EPS Long Term Growth | O63: =IFERROR(_xll.BDP(TKR,"BEST_EST_LONG_TERM_GROWTH")/100,"") -> -0.20402 | P63: =$O$63 -> -0.20402 | Q63: =$O$63 -> -0.20402 | R63: =$O$63 -> -0.20402 | S63: =$O$63 -> -0.20402 | T63: =$O$63 -> -0.20402
B65: 2 | H65: Input (%) | O65: Input | P65: Input | Q65: Input | R65: Input | S65: Input | T65: Input
B66: 2 | E66: >> | H66: ="Input ("&CCY&")" -> Input (CAD) | O66: Input | P66: Input | Q66: Input | R66: Input | S66: Input | T66: Input | X66: 5
L68: Highlight estimates if… | M68: Less than | N68: Greater than
H69: Revenue YoY growth | M69: 0 | N69: 0.15 | O69: =O57 -> -0.239460538 | P69: -0.0741050126 | Q69: -0.1614003166 | R69: -0.427029398 | S69: -0.3302083342 | T69: -0.2474942977
C70: 61 | H70: Number of analysts estimating Revenue | M70: 3 | O70: =_xll.BDP(TKR,"BEST_SALES","BEST_CONSENSUS_STAT_OVERRIDE=NUMEST","BEST_FPERIOD_OVERRIDE",O$53,"Fill=0") -> 26 | P70: =_xll.BDP(TKR,"BEST_SALES","BEST_CONSENSUS_STAT_OVERRIDE=NUMEST","BEST_FPERIOD_OVERRIDE",P$53,"Fill=0") -> 25 | Q70: =_xll.BDP(TKR,"BEST_SALES","BEST_CONSENSUS_STAT_OVERRIDE=NUMEST","BEST_FPERIOD_OVERRIDE",Q$53,"Fill=0") -> 7 | R70: =_xll.BDP(TKR,"BEST_SALES","BEST_CONSENSUS_STAT_OVERRIDE=NUMEST","BEST_FPERIOD_OVERRIDE",R$53,"Fill=0") -> 0 | S70: =_xll.BDP(TKR,"BEST_SALES","BEST_CONSENSUS_STAT_OVERRIDE=NUMEST","BEST_FPERIOD_OVERRIDE",S$53,"Fill=0") -> 0 | T70: =_xll.BDP(TKR,"BEST_SALES","BEST_CONSENSUS_STAT_OVERRIDE=NUMEST","BEST_FPERIOD_OVERRIDE",T$53,"Fill=0") -> 0
C71: 63 | H71: Number of analysts estimating EPS LTG Rate | M71: 3 | O71: =_xll.BDP(TKR,"BEST_LTG_EPS","BEST_CONSENSUS_STAT_OVERRIDE=NUMEST","BEST_FPERIOD_OVERRIDE",O$53,"Fill=0") -> 4 | P71: =O71 -> 4 | Q71: =O71 -> 4 | R71: =O71 -> 4 | S71: =O71 -> 4 | T71: =O71 -> 4
E74: (-) Cost of Revenue | I74: =_xll.BDP(TKR,"IS_COGS_TO_FE_AND_PP_AND_G","EQY_FUND_RELATIVE_PERIOD",I$53,"EQY_FUND_CRNCY",CCY,"FA_ADJUSTED",ADJ,"Fill=0") -> 9300.13704 | J74: =_xll.BDP(TKR,"IS_COGS_TO_FE_AND_PP_AND_G","EQY_FUND_RELATIVE_PERIOD",J$53,"EQY_FUND_CRNCY",CCY,"FA_ADJUSTED",ADJ,"Fill=0") -> 11313.85384 | K74: =_xll.BDP(TKR,"IS_COGS_TO_FE_AND_PP_AND_G","EQY_FUND_RELATIVE_PERIOD",K$53,"EQY_FUND_CRNCY",CCY,"FA_ADJUSTED",ADJ,"Fill=0") -> 11737.0655 | L74: =_xll.BDP(TKR,"IS_COGS_TO_FE_AND_PP_AND_G","EQY_FUND_RELATIVE_PERIOD",L$53,"EQY_FUND_CRNCY",CCY,"FA_ADJUSTED",ADJ,"Fill=0") -> 7535.056646 | M74: =_xll.BDP(TKR,"IS_COGS_TO_FE_AND_PP_AND_G","EQY_FUND_RELATIVE_PERIOD",M$53,"EQY_FUND_CRNCY",CCY,"FA_ADJUSTED",ADJ,"Fill=0") -> 7066.19895 | N74: =_xll.BDP(TKR,"IS_COGS_TO_FE_AND_PP_AND_G","EQY_FUND_RELATIVE_PERIOD",N$53,"EQY_FUND_CRNCY",CCY,"FA_ADJUSTED",ADJ,"Fill=0") -> 1922.627942 | O74: =IF(O77=0,0,O55-O77) -> 1562.295302 | P74: =IF(P77=0,0,P55-P77) -> 1448.556918 | Q74: 882.1392979 | R74: 505.4398846 | S74: 338.5394223 | T74: 254.7528457
E75: (-) Cost of Revenue (GAAP) | I75: =_xll.BDP(TKR,"IS_COGS_TO_FE_AND_PP_AND_G","EQY_FUND_RELATIVE_PERIOD",I$53,"EQY_FUND_CRNCY",CCY,"FA_ADJUSTED=N","Fill=0") -> 9300.13704 | J75: =_xll.BDP(TKR,"IS_COGS_TO_FE_AND_PP_AND_G","EQY_FUND_RELATIVE_PERIOD",J$53,"EQY_FUND_CRNCY",CCY,"FA_ADJUSTED=N","Fill=0") -> 11313.85384 | K75: =_xll.BDP(TKR,"IS_COGS_TO_FE_AND_PP_AND_G","EQY_FUND_RELATIVE_PERIOD",K$53,"EQY_FUND_CRNCY",CCY,"FA_ADJUSTED=N","Fill=0") -> 11750.95083 | L75: =_xll.BDP(TKR,"IS_COGS_TO_FE_AND_PP_AND_G","EQY_FUND_RELATIVE_PERIOD",L$53,"EQY_FUND_CRNCY",CCY,"FA_ADJUSTED=N","Fill=0") -> 7630.95555 | M75: =_xll.BDP(TKR,"IS_COGS_TO_FE_AND_PP_AND_G","EQY_FUND_RELATIVE_PERIOD",M$53,"EQY_FUND_CRNCY",CCY,"FA_ADJUSTED=N","Fill=0") -> 7173.976011 | N75: =_xll.BDP(TKR,"IS_COGS_TO_FE_AND_PP_AND_G","EQY_FUND_RELATIVE_PERIOD",N$53,"EQY_FUND_CRNCY",CCY,"FA_ADJUSTED=N","Fill=0") -> 1948.518131
B76: 3 | E76: % of Revenue | I76: =IFERROR(I74/I$55,"") -> 0.5596758264 | J76: =IFERROR(J74/J$55,"") -> 0.556688602 | K76: 0.6393991787 | L76: 0.6812065384 | M76: 0.9911933069 | N76: 0.512143928 | O76: 0.54719 | P76: 0.54796 | Q76: 0.39792 | R76: 0.39792 | S76: 0.39792 | T76: 0.39792
E77: (=) Gross Profit | I77: =_xll.BDP(TKR,"GROSS_PROFIT","EQY_FUND_RELATIVE_PERIOD",I$53,"EQY_FUND_CRNCY",CCY,"FA_ADJUSTED",ADJ,"Fill=0") -> 7316.869807 | J77: =_xll.BDP(TKR,"GROSS_PROFIT","EQY_FUND_RELATIVE_PERIOD",J$53,"EQY_FUND_CRNCY",CCY,"FA_ADJUSTED",ADJ,"Fill=0") -> 9009.633649 | K77: =_xll.BDP(TKR,"GROSS_PROFIT","EQY_FUND_RELATIVE_PERIOD",K$53,"EQY_FUND_CRNCY",CCY,"FA_ADJUSTED",ADJ,"Fill=0") -> 6535.028275 | L77: =_xll.BDP(TKR,"GROSS_PROFIT","EQY_FUND_RELATIVE_PERIOD",L$53,"EQY_FUND_CRNCY",CCY,"FA_ADJUSTED",ADJ,"Fill=0") -> 3526.282641 | M77: =_xll.BDP(TKR,"GROSS_PROFIT","EQY_FUND_RELATIVE_PERIOD",M$53,"EQY_FUND_CRNCY",CCY,"FA_ADJUSTED",ADJ,"Fill=0") -> 62.78275389 | N77: =_xll.BDP(TKR,"GROSS_PROFIT","EQY_FUND_RELATIVE_PERIOD",N$53,"EQY_FUND_CRNCY",CCY,"FA_ADJUSTED",ADJ,"Fill=0") -> 1831.44945 | O77: =O$55*O78 -> 1292.828698 | P77: 1194.988082 | Q77: 1334.736702 | R77: 764.7648918 | S77: 512.2331508 | T77: 385.4583669
A78: 13 | E78: % Margin | H78: Edit Row | I78: =IF(ISERROR(I77/I$55),"",I77/I$55) -> 0.4403241736 | J78: 0.443311398 | K78: 0.3560082127 | L78: 0.3187934616 | M78: 0.008806693087 | N78: 0.487856072 | O78: =IF(ISNUMBER(O$82),O$82,IF(ISNUMBER(O$83),O$83,"")) -> 0.45281 | P78: 0.45204 | Q78: 0.60208 | R78: 0.60208 | S78: 0.60208 | T78: 0.60208 | W78: 8 | X78: 4
O80: =IF($O$82<>"", 1,2) -> 1 | P80: =IF($P$82<>"", 1,2) -> 1 | Q80: =IF($Q$82<>"", 1,2) -> 1 | R80: =IF($R$82<>"", 1,2) -> 2 | S80: =IF($S$82<>"", 1,2) -> 2 | T80: =IF($T$82<>"", 1,2) -> 2
O81: Click on a cell below to select assumption (selected cells are highlighted in blue)
B82: 1 | H82: BEst Consensus Gross Margin | O82: =IFERROR(_xll.BDP(TKR,"BEST_GROSS_MARGIN","BEST_FPERIOD_OVERRIDE",O$53,"EQY_FUND_CRNCY",CCY)/100,"") -> 0.45281 | P82: =IFERROR(_xll.BDP(TKR,"BEST_GROSS_MARGIN","BEST_FPERIOD_OVERRIDE",P$53,"EQY_FUND_CRNCY",CCY)/100,"") -> 0.45204 | Q82: =IFERROR(_xll.BDP(TKR,"BEST_GROSS_MARGIN","BEST_FPERIOD_OVERRIDE",Q$53,"EQY_FUND_CRNCY",CCY)/100,"") -> 0.60208 | R82: =IFERROR(_xll.BDP(TKR,"BEST_GROSS_MARGIN","BEST_FPERIOD_OVERRIDE",R$53,"EQY_FUND_CRNCY",CCY)/100,"") ->  | S82: =IFERROR(_xll.BDP(TKR,"BEST_GROSS_MARGIN","BEST_FPERIOD_OVERRIDE",S$53,"EQY_FUND_CRNCY",CCY)/100,"") ->  | T82: =IFERROR(_xll.BDP(TKR,"BEST_GROSS_MARGIN","BEST_FPERIOD_OVERRIDE",T$53,"EQY_FUND_CRNCY",CCY)/100,"") -> 
B83: 1 | H83: Last Year's Gross Margin | O83: =IF(ISBLANK(N78),"",N78) -> 0.487856072 | P83: 0.45281 | Q83: 0.45204 | R83: 0.60208 | S83: 0.60208 | T83: 0.60208
B85: 2 | E85: >> | H85: Input (%) | O85: Input | P85: Input | Q85: Input | R85: Input | S85: Input | T85: Input | X85: 4
L87: Highlight estimates if… | M87: Less than | N87: Greater than
H88: Gross Margin YoY Change | M88: -0.05 | N88: 0.05 | O88: =IFERROR(O78-N78,"NA") -> -0.03504607196 | P88: -0.00077 | Q88: 0.15004 | R88: 0 | S88: 0 | T88: 0
C89: 82 | H89: Number of analysts estimating Gross Margin | M89: 3 | O89: =_xll.BDP(TKR,"BEST_GROSS_MARGIN","BEST_CONSENSUS_STAT_OVERRIDE=NUMEST","BEST_FPERIOD_OVERRIDE",O$53,"Fill=0") -> 14 | P89: =_xll.BDP(TKR,"BEST_GROSS_MARGIN","BEST_CONSENSUS_STAT_OVERRIDE=NUMEST","BEST_FPERIOD_OVERRIDE",P$53,"Fill=0") -> 13 | Q89: =_xll.BDP(TKR,"BEST_GROSS_MARGIN","BEST_CONSENSUS_STAT_OVERRIDE=NUMEST","BEST_FPERIOD_OVERRIDE",Q$53,"Fill=0") -> 3 | R89: =_xll.BDP(TKR,"BEST_GROSS_MARGIN","BEST_CONSENSUS_STAT_OVERRIDE=NUMEST","BEST_FPERIOD_OVERRIDE",R$53,"Fill=0") -> 0 | S89: =_xll.BDP(TKR,"BEST_GROSS_MARGIN","BEST_CONSENSUS_STAT_OVERRIDE=NUMEST","BEST_FPERIOD_OVERRIDE",S$53,"Fill=0") -> 0 | T89: =_xll.BDP(TKR,"BEST_GROSS_MARGIN","BEST_CONSENSUS_STAT_OVERRIDE=NUMEST","BEST_FPERIOD_OVERRIDE",T$53,"Fill=0") -> 0
E92: (-) Operating Expenses/Income | I92: =IF(AND(I74=0,I77=0),I55-I110,I77-I110) -> 3539.043837 | J92: 4273.578068 | K92: 4574.22225 | L92: =IF(AND(L74=0,L77=0),L55-L110,L77-L110) -> 4205.566549 | M92: =IF(AND(M74=0,M77=0),M55-M110,M77-M110) -> 4146.800894 | N92: 1855.088318 | O92: =O$55*O93 -> 1542.446698 | P92: 1505.969082 | Q92: 1703.543702 | R92: 976.0804606 | S92: 653.7705577 | T92: 491.9660726
A93: 15 | E93: % of Revenue | H93: Edit Row | I93: =IF(ISERROR(I92/I$55),"",I92/I$55) -> 0.2129772148 | J93: 0.2102777917 | K93: 0.2491895397 | L93: 0.3802041001 | M93: 0.5816820784 | N93: 0.4941529235 | O93: =IF(ISNUMBER(O$97),O$97,IF(ISNUMBER(O$98),O$98,"")) -> 0.5402380767 | P93: 0.5696778688 | Q93: 0.768443387 | R93: 0.768443387 | S93: 0.768443387 | T93: 0.768443387 | W93: 8 | X93: 6
O95: =IF($O$97<>"", 1,2) -> 1 | P95: =IF($P$97<>"", 1,2) -> 1 | Q95: =IF($Q$97<>"", 1,2) -> 1 | R95: =IF($R$97<>"", 1,2) -> 2 | S95: =IF($S$97<>"", 1,2) -> 2 | T95: =IF($T$97<>"", 1,2) -> 2
O96: Click on a cell below to select assumption (selected cells are highlighted in blue)
B97: 1 | H97: BEst Consensus Implied Operating Expense as a % of Revenue | O97: =IFERROR((_xll.BDP(TKR,"BEST_SALES","BEST_FPERIOD_OVERRIDE",O$53,"EQY_FUND_CRNCY",CCY)*(_xll.BDP(TKR,"BEST_GROSS_MARGIN","BEST_FPERIOD_OVERRIDE",O$53,"EQY_FUND_CRNCY",CCY)/100)-_xll.BDP(TKR,"BEST_OPP","BEST_FPERIOD_OVERRIDE",O$53,"EQY_FUND_CRNCY",CCY))/_xll.BDP(TKR,"BEST_SALES","BEST_FPERIOD_OVERRIDE",O$53,"EQY_FUND_CRNCY",CCY),"") -> 0.5402380767 | P97: =IFERROR((_xll.BDP(TKR,"BEST_SALES","BEST_FPERIOD_OVERRIDE",P$53,"EQY_FUND_CRNCY",CCY)*(_xll.BDP(TKR,"BEST_GROSS_MARGIN","BEST_FPERIOD_OVERRIDE",P$53,"EQY_FUND_CRNCY",CCY)/100)-_xll.BDP(TKR,"BEST_OPP","BEST_FPERIOD_OVERRIDE",P$53,"EQY_FUND_CRNCY",CCY))/_xll.BDP(TKR,"BEST_SALES","BEST_FPERIOD_OVERRIDE",P$53,"EQY_FUND_CRNCY",CCY),"") -> 0.5696778688 | Q97: =IFERROR((_xll.BDP(TKR,"BEST_SALES","BEST_FPERIOD_OVERRIDE",Q$53,"EQY_FUND_CRNCY",CCY)*(_xll.BDP(TKR,"BEST_GROSS_MARGIN","BEST_FPERIOD_OVERRIDE",Q$53,"EQY_FUND_CRNCY",CCY)/100)-_xll.BDP(TKR,"BEST_OPP","BEST_FPERIOD_OVERRIDE",Q$53,"EQY_FUND_CRNCY",CCY))/_xll.BDP(TKR,"BEST_SALES","BEST_FPERIOD_OVERRIDE",Q$53,"EQY_FUND_CRNCY",CCY),"") -> 0.768443387 | R97: =IFERROR((_xll.BDP(TKR,"BEST_SALES","BEST_FPERIOD_OVERRIDE",R$53,"EQY_FUND_CRNCY",CCY)*(_xll.BDP(TKR,"BEST_GROSS_MARGIN","BEST_FPERIOD_OVERRIDE",R$53,"EQY_FUND_CRNCY",CCY)/100)-_xll.BDP(TKR,"BEST_OPP","BEST_FPERIOD_OVERRIDE",R$53,"EQY_FUND_CRNCY",CCY))/_xll.BDP(TKR,"BEST_SALES","BEST_FPERIOD_OVERRIDE",R$53,"EQY_FUND_CRNCY",CCY),"") ->  | S97: =IFERROR((_xll.BDP(TKR,"BEST_SALES","BEST_FPERIOD_OVERRIDE",S$53,"EQY_FUND_CRNCY",CCY)*(_xll.BDP(TKR,"BEST_GROSS_MARGIN","BEST_FPERIOD_OVERRIDE",S$53,"EQY_FUND_CRNCY",CCY)/100)-_xll.BDP(TKR,"BEST_OPP","BEST_FPERIOD_OVERRIDE",S$53,"EQY_FUND_CRNCY",CCY))/_xll.BDP(TKR,"BEST_SALES","BEST_FPERIOD_OVERRIDE",S$53,"EQY_FUND_CRNCY",CCY),"") ->  | T97: =IFERROR((_xll.BDP(TKR,"BEST_SALES","BEST_FPERIOD_OVERRIDE",T$53,"EQY_FUND_CRNCY",CCY)*(_xll.BDP(TKR,"BEST_GROSS_MARGIN","BEST_FPERIOD_OVERRIDE",T$53,"EQY_FUND_CRNCY",CCY)/100)-_xll.BDP(TKR,"BEST_OPP","BEST_FPERIOD_OVERRIDE",T$53,"EQY_FUND_CRNCY",CCY))/_xll.BDP(TKR,"BEST_SALES","BEST_FPERIOD_OVERRIDE",T$53,"EQY_FUND_CRNCY",CCY),"") -> 
B98: 1 | H98: Last Year's Operating Expense as a % of Revenue | O98: =IF(ISBLANK(N93),"",N93) -> 0.4941529235 | P98: 0.5402380767 | Q98: 0.5696778688 | R98: 0.768443387 | S98: 0.768443387 | T98: 0.768443387
B100: 2 | E100: >> | H100: Input (%) | O100: Input | P100: Input | Q100: Input | R100: Input | S100: Input | T100: Input | X100: 6
L102: Highlight estimates if… | M102: Less than | N102: Greater than
H103: Operating Expenses/Income as a % of Revenue change | M103: -0.05 | N103: 0.05 | O103: =IFERROR(O93-N93,"NA") -> 0.04608515314 | P103: 0.02943979217 | Q103: 0.1987655182 | R103: 0 | S103: 0 | T103: 0
C104: 97 | H104: Number of analysts estimating Revenue | M104: 3 | O104: =_xll.BDP(TKR,"BEST_SALES","BEST_CONSENSUS_STAT_OVERRIDE=NUMEST","BEST_FPERIOD_OVERRIDE",O$53,"Fill=0") -> 26 | P104: =_xll.BDP(TKR,"BEST_SALES","BEST_CONSENSUS_STAT_OVERRIDE=NUMEST","BEST_FPERIOD_OVERRIDE",P$53,"Fill=0") -> 25 | Q104: =_xll.BDP(TKR,"BEST_SALES","BEST_CONSENSUS_STAT_OVERRIDE=NUMEST","BEST_FPERIOD_OVERRIDE",Q$53,"Fill=0") -> 7 | R104: =_xll.BDP(TKR,"BEST_SALES","BEST_CONSENSUS_STAT_OVERRIDE=NUMEST","BEST_FPERIOD_OVERRIDE",R$53,"Fill=0") -> 0 | S104: =_xll.BDP(TKR,"BEST_SALES","BEST_CONSENSUS_STAT_OVERRIDE=NUMEST","BEST_FPERIOD_OVERRIDE",S$53,"Fill=0") -> 0 | T104: =_xll.BDP(TKR,"BEST_SALES","BEST_CONSENSUS_STAT_OVERRIDE=NUMEST","BEST_FPERIOD_OVERRIDE",T$53,"Fill=0") -> 0
C105: 97 | H105: Number of analysts estimating Gross Margin | M105: 3 | O105: =_xll.BDP(TKR,"BEST_GROSS_MARGIN","BEST_CONSENSUS_STAT_OVERRIDE=NUMEST","BEST_FPERIOD_OVERRIDE",O$53,"Fill=0") -> 14 | P105: =_xll.BDP(TKR,"BEST_GROSS_MARGIN","BEST_CONSENSUS_STAT_OVERRIDE=NUMEST","BEST_FPERIOD_OVERRIDE",P$53,"Fill=0") -> 13 | Q105: =_xll.BDP(TKR,"BEST_GROSS_MARGIN","BEST_CONSENSUS_STAT_OVERRIDE=NUMEST","BEST_FPERIOD_OVERRIDE",Q$53,"Fill=0") -> 3 | R105: =_xll.BDP(TKR,"BEST_GROSS_MARGIN","BEST_CONSENSUS_STAT_OVERRIDE=NUMEST","BEST_FPERIOD_OVERRIDE",R$53,"Fill=0") -> 0 | S105: =_xll.BDP(TKR,"BEST_GROSS_MARGIN","BEST_CONSENSUS_STAT_OVERRIDE=NUMEST","BEST_FPERIOD_OVERRIDE",S$53,"Fill=0") -> 0 | T105: =_xll.BDP(TKR,"BEST_GROSS_MARGIN","BEST_CONSENSUS_STAT_OVERRIDE=NUMEST","BEST_FPERIOD_OVERRIDE",T$53,"Fill=0") -> 0
C106: 97 | H106: Number of analysts estimating Operating Profit | M106: 3 | O106: =_xll.BDP(TKR,"BEST_OPP","BEST_CONSENSUS_STAT_OVERRIDE=NUMEST","BEST_FPERIOD_OVERRIDE",O$53,"Fill=0") -> 16 | P106: =_xll.BDP(TKR,"BEST_OPP","BEST_CONSENSUS_STAT_OVERRIDE=NUMEST","BEST_FPERIOD_OVERRIDE",P$53,"Fill=0") -> 15 | Q106: =_xll.BDP(TKR,"BEST_OPP","BEST_CONSENSUS_STAT_OVERRIDE=NUMEST","BEST_FPERIOD_OVERRIDE",Q$53,"Fill=0") -> 5 | R106: =_xll.BDP(TKR,"BEST_OPP","BEST_CONSENSUS_STAT_OVERRIDE=NUMEST","BEST_FPERIOD_OVERRIDE",R$53,"Fill=0") -> 0 | S106: =_xll.BDP(TKR,"BEST_OPP","BEST_CONSENSUS_STAT_OVERRIDE=NUMEST","BEST_FPERIOD_OVERRIDE",S$53,"Fill=0") -> 0 | T106: =_xll.BDP(TKR,"BEST_OPP","BEST_CONSENSUS_STAT_OVERRIDE=NUMEST","BEST_FPERIOD_OVERRIDE",T$53,"Fill=0") -> 0
B109: 3 | E109: % YoY Growth | J109: =IF(ISERROR(J92/I92-1),"",J92/I92-1) -> 0.2075516058 | K109: 0.07034952359 | L109: -0.08059418207 | M109: -0.0139733027 | N109: -0.5526459153 | O109: -0.1685319329 | P109: -0.02364919104 | Q109: 0.1311943404 | R109: -0.427029398 | S109: -0.3302083342 | T109: -0.2474942977
E110: (=) Operating Income | I110: =_xll.BDP(TKR,"IS_OPER_INC","EQY_FUND_RELATIVE_PERIOD",I$53,"EQY_FUND_CRNCY",CCY,"FA_ADJUSTED",ADJ,"Fill=0") -> 3777.82597 | J110: =_xll.BDP(TKR,"IS_OPER_INC","EQY_FUND_RELATIVE_PERIOD",J$53,"EQY_FUND_CRNCY",CCY,"FA_ADJUSTED",ADJ,"Fill=0") -> 4736.05558 | K110: =_xll.BDP(TKR,"IS_OPER_INC","EQY_FUND_RELATIVE_PERIOD",K$53,"EQY_FUND_CRNCY",CCY,"FA_ADJUSTED",ADJ,"Fill=0") -> 1960.806025 | L110: =_xll.BDP(TKR,"IS_OPER_INC","EQY_FUND_RELATIVE_PERIOD",L$53,"EQY_FUND_CRNCY",CCY,"FA_ADJUSTED",ADJ,"Fill=0") -> -679.2839081 | M110: =_xll.BDP(TKR,"IS_OPER_INC","EQY_FUND_RELATIVE_PERIOD",M$53,"EQY_FUND_CRNCY",CCY,"FA_ADJUSTED",ADJ,"Fill=0") -> -4084.018141 | N110: =_xll.BDP(TKR,"IS_OPER_INC","EQY_FUND_RELATIVE_PERIOD",N$53,"EQY_FUND_CRNCY",CCY,"FA_ADJUSTED",ADJ,"Fill=0") -> -23.63886813 | O110: =O55-O74-O92 -> -249.618 | P110: =P55-P74-P92 -> -310.981 | Q110: -368.807 | R110: -211.3155688 | S110: -141.5374069 | T110: -106.5077057
B111: 3 | E111: % Margin | I111: =IFERROR(I110/I$55,"") -> 0.2273469588 | J111: 0.2330336063 | K111: 0.106818673 | L111: -0.06141063849 | M111: -0.5728753853 | N111: -0.006296851574 | O111: =IFERROR(O110/O$55,"") -> -0.08742807668 | P111: -0.1176378688 | Q111: -0.166363387 | R111: -0.166363387 | S111: -0.166363387 | T111: -0.166363387
E112: (-) Tax on Operating Income | I112: =I110*I113 -> 1107.175875 | J112: 1257.706188 | K112: 377.7669054 | L112: 0 | M112: 0 | N112: 0 | O112: =O110*O113 -> -22.87593378 | P112: -17.68255103 | Q112: -10.95388639 | R112: -7.531505857 | S112: -6.053447825 | T112: -5.466304808
A113: 12 | E113: % Tax Rate | H113: Edit Row | I113: =IF(ISERROR(_xll.BDP(TKR,"EFF_TAX_RATE","EQY_FUND_RELATIVE_PERIOD",I$53,"EQY_FUND_CRNCY",CCY,"FA_ADJUSTED",ADJ,"Fill=0")/100),0,_xll.BDP(TKR,"EFF_TAX_RATE","EQY_FUND_RELATIVE_PERIOD",I$53,"EQY_FUND_CRNCY",CCY,"FA_ADJUSTED",ADJ,"Fill=0")/100) -> 0.2930722282 | J113: =IF(ISERROR(_xll.BDP(TKR,"EFF_TAX_RATE","EQY_FUND_RELATIVE_PERIOD",J$53,"EQY_FUND_CRNCY",CCY,"FA_ADJUSTED",ADJ,"Fill=0")/100),0,_xll.BDP(TKR,"EFF_TAX_RATE","EQY_FUND_RELATIVE_PERIOD",J$53,"EQY_FUND_CRNCY",CCY,"FA_ADJUSTED",ADJ,"Fill=0")/100) -> 0.2655598456 | K113: =IF(ISERROR(_xll.BDP(TKR,"EFF_TAX_RATE","EQY_FUND_RELATIVE_PERIOD",K$53,"EQY_FUND_CRNCY",CCY,"FA_ADJUSTED",ADJ,"Fill=0")/100),0,_xll.BDP(TKR,"EFF_TAX_RATE","EQY_FUND_RELATIVE_PERIOD",K$53,"EQY_FUND_CRNCY",CCY,"FA_ADJUSTED",ADJ,"Fill=0")/100) -> 0.1926589885 | L113: =IF(ISERROR(_xll.BDP(TKR,"EFF_TAX_RATE","EQY_FUND_RELATIVE_PERIOD",L$53,"EQY_FUND_CRNCY",CCY,"FA_ADJUSTED",ADJ,"Fill=0")/100),0,_xll.BDP(TKR,"EFF_TAX_RATE","EQY_FUND_RELATIVE_PERIOD",L$53,"EQY_FUND_CRNCY",CCY,"FA_ADJUSTED",ADJ,"Fill=0")/100) -> 0 | M113: =IF(ISERROR(_xll.BDP(TKR,"EFF_TAX_RATE","EQY_FUND_RELATIVE_PERIOD",M$53,"EQY_FUND_CRNCY",CCY,"FA_ADJUSTED",ADJ,"Fill=0")/100),0,_xll.BDP(TKR,"EFF_TAX_RATE","EQY_FUND_RELATIVE_PERIOD",M$53,"EQY_FUND_CRNCY",CCY,"FA_ADJUSTED",ADJ,"Fill=0")/100) -> 0 | N113: =IF(ISERROR(_xll.BDP(TKR,"EFF_TAX_RATE","EQY_FUND_RELATIVE_PERIOD",N$53,"EQY_FUND_CRNCY",CCY,"FA_ADJUSTED",ADJ,"Fill=0")/100),0,_xll.BDP(TKR,"EFF_TAX_RATE","EQY_FUND_RELATIVE_PERIOD",N$53,"EQY_FUND_CRNCY",CCY,"FA_ADJUSTED",ADJ,"Fill=0")/100) -> 0 | O113: =IF(ISNUMBER(O$117),O$117,IF(ISNUMBER(O$118),O$118,"")) -> 0.09164376681 | P113: 0.05686055106 | Q113: 0.02970086357 | R113: 0.03564103629 | S113: 0.04276924355 | T113: 0.05132309225 | W113: 8 | X113: 3
O115: =IF($O$117<>"", 1,2) -> 1 | P115: =IF($P$117<>"", 1,2) -> 1 | Q115: =IF($Q$117<>"", 1,2) -> 1 | R115: =IF($R$117<>"", 1,2) -> 1 | S115: =IF($S$117<>"", 1,2) -> 1 | T115: =IF($T$117<>"", 1,2) -> 1
O116: Click on a cell below to select assumption (selected cells are highlighted in blue)
B117: 1 | H117: 5 Year Rolling Average Effective Tax Rate | O117: =AVERAGE(J113:N113) -> 0.09164376681 | P117: 0.05686055106 | Q117: 0.02970086357 | R117: 0.03564103629 | S117: 0.04276924355 | T117: 0.05132309225
B118: 1 | H118: Last Year's Effective Tax Rate | O118: =IF(ISBLANK(N113),"",N113) -> 0 | P118: 0.09164376681 | Q118: 0.05686055106 | R118: 0.02970086357 | S118: 0.03564103629 | T118: 0.04276924355
B120: 2 | E120: >> | H120: Input (%) | O120: Input | P120: Input | Q120: Input | R120: Input | S120: Input | T120: Input | X120: 3
L122: Highlight estimates if… | M122: Less than | N122: Greater than
H123: Estimated Tax on Operating Income | M123: 0 | N123: 0.5 | O123: =O113 -> 0.09164376681 | P123: 0.05686055106 | Q123: 0.02970086357 | R123: 0.03564103629 | S123: 0.04276924355 | T123: 0.05132309225
E126: (=) NOPAT | I126: =I110-I112 -> 2670.650095 | J126: 3478.349392 | K126: 1583.03912 | L126: -679.2839081 | M126: -4084.018141 | N126: -23.63886813 | O126: -226.7420662 | P126: -293.298449 | Q126: -357.8531136 | R126: -203.784063 | S126: -135.483959 | T126: -101.0414009
B127: 3 | E127: % Margin | I127: =IF(ISERROR(I126/I$55),"",I126/I$55) -> 0.160717879 | J127: =IFERROR(J126/J$55,"") -> 0.1711492378 | K127: =IFERROR(K126/K$55,"") -> 0.08623909551 | L127: =IFERROR(L126/L$55,"") -> -0.06141063849 | M127: =IFERROR(M126/M$55,"") -> -0.5728753853 | N127: =IFERROR(N126/N$55,"") -> -0.006296851574 | O127: =IFERROR(O126/O55,"") -> -0.07941583841 | P127: -0.1109489148 | Q127: -0.1614222508 | R127: -0.1604340235 | S127: -0.1592481508 | T127: -0.1578251036
E128: (+) Depreciation & Amortization | I128: =_xll.BDP(TKR,"CF_DEPR_AMORT","EQY_FUND_RELATIVE_PERIOD",I$53,"EQY_FUND_CRNCY",CCY,"Fill=0") -> 684.1185802 | J128: =_xll.BDP(TKR,"CF_DEPR_AMORT","EQY_FUND_RELATIVE_PERIOD",J$53,"EQY_FUND_CRNCY",CCY,"Fill=0") -> 946.3943788 | K128: =_xll.BDP(TKR,"CF_DEPR_AMORT","EQY_FUND_RELATIVE_PERIOD",K$53,"EQY_FUND_CRNCY",CCY,"Fill=0") -> 1510.524824 | L128: =_xll.BDP(TKR,"CF_DEPR_AMORT","EQY_FUND_RELATIVE_PERIOD",L$53,"EQY_FUND_CRNCY",CCY,"Fill=0") -> 1915.9802 | M128: =_xll.BDP(TKR,"CF_DEPR_AMORT","EQY_FUND_RELATIVE_PERIOD",M$53,"EQY_FUND_CRNCY",CCY,"Fill=0") -> 1328.901624 | N128: =_xll.BDP(TKR,"CF_DEPR_AMORT","EQY_FUND_RELATIVE_PERIOD",N$53,"EQY_FUND_CRNCY",CCY,"Fill=0") -> 781.2083088 | O128: =O$55*O129 -> 722.615 | P128: 723.271 | Q128: 636.558 | R128: 364.7290205 | S128: 244.2924582 | T128: 183.8314678
A129: 15 | E129: % of Revenue | H129: Edit Row | I129: =IF(ISERROR(I128/I$55),"",I128/I$55) -> 0.04116978385 | J129: 0.04656653438 | K129: 0.08228874 | L129: 0.1732141244 | M129: 0.186408337 | N129: 0.208095952 | O129: =IF(ISNUMBER(O$133),O$133,IF(ISNUMBER(O$134),O$134,"")) -> 0.2530940863 | P129: 0.2735988984 | Q129: 0.287141906 | R129: 0.287141906 | S129: 0.287141906 | T129: 0.287141906 | W129: 8 | X129: 6
O131: =IF($O$133<>"", 1,2) -> 1 | P131: =IF($P$133<>"", 1,2) -> 1 | Q131: =IF($Q$133<>"", 1,2) -> 1 | R131: =IF($R$133<>"", 1,2) -> 2 | S131: =IF($S$133<>"", 1,2) -> 2 | T131: =IF($T$133<>"", 1,2) -> 2
O132: Click on a cell below to select assumption (selected cells are highlighted in blue)
B133: 1 | H133: BEst Consensus Implied Depreciation & Amortization as a % of Revenue | O133: =IFERROR((_xll.BDP(TKR,"BEST_EBITDA","BEST_FPERIOD_OVERRIDE",O$53,"EQY_FUND_CRNCY",CCY)-_xll.BDP(TKR,"BEST_OPP","BEST_FPERIOD_OVERRIDE",O$53,"EQY_FUND_CRNCY",CCY))/_xll.BDP(TKR,"BEST_SALES","BEST_FPERIOD_OVERRIDE",O$53,"EQY_FUND_CRNCY",CCY),"") -> 0.2530940863 | P133: =IFERROR((_xll.BDP(TKR,"BEST_EBITDA","BEST_FPERIOD_OVERRIDE",P$53,"EQY_FUND_CRNCY",CCY)-_xll.BDP(TKR,"BEST_OPP","BEST_FPERIOD_OVERRIDE",P$53,"EQY_FUND_CRNCY",CCY))/_xll.BDP(TKR,"BEST_SALES","BEST_FPERIOD_OVERRIDE",P$53,"EQY_FUND_CRNCY",CCY),"") -> 0.2735988984 | Q133: =IFERROR((_xll.BDP(TKR,"BEST_EBITDA","BEST_FPERIOD_OVERRIDE",Q$53,"EQY_FUND_CRNCY",CCY)-_xll.BDP(TKR,"BEST_OPP","BEST_FPERIOD_OVERRIDE",Q$53,"EQY_FUND_CRNCY",CCY))/_xll.BDP(TKR,"BEST_SALES","BEST_FPERIOD_OVERRIDE",Q$53,"EQY_FUND_CRNCY",CCY),"") -> 0.287141906 | R133: =IFERROR((_xll.BDP(TKR,"BEST_EBITDA","BEST_FPERIOD_OVERRIDE",R$53,"EQY_FUND_CRNCY",CCY)-_xll.BDP(TKR,"BEST_OPP","BEST_FPERIOD_OVERRIDE",R$53,"EQY_FUND_CRNCY",CCY))/_xll.BDP(TKR,"BEST_SALES","BEST_FPERIOD_OVERRIDE",R$53,"EQY_FUND_CRNCY",CCY),"") ->  | S133: =IFERROR((_xll.BDP(TKR,"BEST_EBITDA","BEST_FPERIOD_OVERRIDE",S$53,"EQY_FUND_CRNCY",CCY)-_xll.BDP(TKR,"BEST_OPP","BEST_FPERIOD_OVERRIDE",S$53,"EQY_FUND_CRNCY",CCY))/_xll.BDP(TKR,"BEST_SALES","BEST_FPERIOD_OVERRIDE",S$53,"EQY_FUND_CRNCY",CCY),"") ->  | T133: =IFERROR((_xll.BDP(TKR,"BEST_EBITDA","BEST_FPERIOD_OVERRIDE",T$53,"EQY_FUND_CRNCY",CCY)-_xll.BDP(TKR,"BEST_OPP","BEST_FPERIOD_OVERRIDE",T$53,"EQY_FUND_CRNCY",CCY))/_xll.BDP(TKR,"BEST_SALES","BEST_FPERIOD_OVERRIDE",T$53,"EQY_FUND_CRNCY",CCY),"") -> 
B134: 1 | H134: Last Year's Depreciation & Amortization as a % of Revenue | O134: =IF(ISBLANK(N129),"",N129) -> 0.208095952 | P134: 0.2530940863 | Q134: 0.2735988984 | R134: 0.287141906 | S134: 0.287141906 | T134: 0.287141906
B136: 2 | E136: >> | H136: Input (%) | O136: Input | P136: Input | Q136: Input | R136: Input | S136: Input | T136: Input | X136: 6
L138: Highlight estimates if… | M138: Less than | N138: Greater than
H139: Depr & Amort as a % of Revenue change | M139: -0.05 | N139: 0.05 | O139: =O129-N129 -> 0.04499813426 | P139: 0.02050481217 | Q139: 0.01354300755 | R139: 0 | S139: 0 | T139: 0
C140: 133 | H140: Number of analysts estimating Revenue | M140: 3 | O140: =_xll.BDP(TKR,"BEST_SALES","BEST_CONSENSUS_STAT_OVERRIDE=NUMEST","BEST_FPERIOD_OVERRIDE",O$53,"Fill=0") -> 26 | P140: =_xll.BDP(TKR,"BEST_SALES","BEST_CONSENSUS_STAT_OVERRIDE=NUMEST","BEST_FPERIOD_OVERRIDE",P$53,"Fill=0") -> 25 | Q140: =_xll.BDP(TKR,"BEST_SALES","BEST_CONSENSUS_STAT_OVERRIDE=NUMEST","BEST_FPERIOD_OVERRIDE",Q$53,"Fill=0") -> 7 | R140: =_xll.BDP(TKR,"BEST_SALES","BEST_CONSENSUS_STAT_OVERRIDE=NUMEST","BEST_FPERIOD_OVERRIDE",R$53,"Fill=0") -> 0 | S140: =_xll.BDP(TKR,"BEST_SALES","BEST_CONSENSUS_STAT_OVERRIDE=NUMEST","BEST_FPERIOD_OVERRIDE",S$53,"Fill=0") -> 0 | T140: =_xll.BDP(TKR,"BEST_SALES","BEST_CONSENSUS_STAT_OVERRIDE=NUMEST","BEST_FPERIOD_OVERRIDE",T$53,"Fill=0") -> 0
C141: 133 | H141: Number of analysts estimating Operating Profit | M141: 3 | O141: =_xll.BDP(TKR,"BEST_OPP","BEST_CONSENSUS_STAT_OVERRIDE=NUMEST","BEST_FPERIOD_OVERRIDE",O$53,"Fill=0") -> 16 | P141: =_xll.BDP(TKR,"BEST_OPP","BEST_CONSENSUS_STAT_OVERRIDE=NUMEST","BEST_FPERIOD_OVERRIDE",P$53,"Fill=0") -> 15 | Q141: =_xll.BDP(TKR,"BEST_OPP","BEST_CONSENSUS_STAT_OVERRIDE=NUMEST","BEST_FPERIOD_OVERRIDE",Q$53,"Fill=0") -> 5 | R141: =_xll.BDP(TKR,"BEST_OPP","BEST_CONSENSUS_STAT_OVERRIDE=NUMEST","BEST_FPERIOD_OVERRIDE",R$53,"Fill=0") -> 0 | S141: =_xll.BDP(TKR,"BEST_OPP","BEST_CONSENSUS_STAT_OVERRIDE=NUMEST","BEST_FPERIOD_OVERRIDE",S$53,"Fill=0") -> 0 | T141: =_xll.BDP(TKR,"BEST_OPP","BEST_CONSENSUS_STAT_OVERRIDE=NUMEST","BEST_FPERIOD_OVERRIDE",T$53,"Fill=0") -> 0
C142: 133 | H142: Number of analysts estimating EBITDA | M142: 3 | O142: =_xll.BDP(TKR,"BEST_EBITDA","BEST_CONSENSUS_STAT_OVERRIDE=NUMEST","BEST_FPERIOD_OVERRIDE",O$53,"Fill=0") -> 13 | P142: =_xll.BDP(TKR,"BEST_EBITDA","BEST_CONSENSUS_STAT_OVERRIDE=NUMEST","BEST_FPERIOD_OVERRIDE",P$53,"Fill=0") -> 12 | Q142: =_xll.BDP(TKR,"BEST_EBITDA","BEST_CONSENSUS_STAT_OVERRIDE=NUMEST","BEST_FPERIOD_OVERRIDE",Q$53,"Fill=0") -> 4 | R142: =_xll.BDP(TKR,"BEST_EBITDA","BEST_CONSENSUS_STAT_OVERRIDE=NUMEST","BEST_FPERIOD_OVERRIDE",R$53,"Fill=0") -> 0 | S142: =_xll.BDP(TKR,"BEST_EBITDA","BEST_CONSENSUS_STAT_OVERRIDE=NUMEST","BEST_FPERIOD_OVERRIDE",S$53,"Fill=0") -> 0 | T142: =_xll.BDP(TKR,"BEST_EBITDA","BEST_CONSENSUS_STAT_OVERRIDE=NUMEST","BEST_FPERIOD_OVERRIDE",T$53,"Fill=0") -> 0
B145: 3 | E145: % YoY Growth | J145: =IFERROR(J128/I128-1,"") -> 0.3833776864 | K145: 0.5960838921 | L145: 0.2684202006 | M145: -0.3064116089 | N145: -0.4121398494 | O145: -0.07500343784 | P145: 0.0009078139812 | Q145: -0.119890055 | R145: -0.427029398 | S145: -0.3302083342 | T145: -0.2474942977
E146: (-) Capital Expenditure | I146: =-_xll.BDP(TKR,"CF_CAP_EXPEND_PRPTY_ADD","EQY_FUND_RELATIVE_PERIOD",I$53,"EQY_FUND_CRNCY",CCY,"Fill=0") -> 1121.729507 | J146: =-_xll.BDP(TKR,"CF_CAP_EXPEND_PRPTY_ADD","EQY_FUND_RELATIVE_PERIOD",J$53,"EQY_FUND_CRNCY",CCY,"Fill=0") -> 1060.737605 | K146: =-_xll.BDP(TKR,"CF_CAP_EXPEND_PRPTY_ADD","EQY_FUND_RELATIVE_PERIOD",K$53,"EQY_FUND_CRNCY",CCY,"Fill=0") -> 894.6115501 | L146: =-_xll.BDP(TKR,"CF_CAP_EXPEND_PRPTY_ADD","EQY_FUND_RELATIVE_PERIOD",L$53,"EQY_FUND_CRNCY",CCY,"Fill=0") -> 417.5598141 | M146: =-_xll.BDP(TKR,"CF_CAP_EXPEND_PRPTY_ADD","EQY_FUND_RELATIVE_PERIOD",M$53,"EQY_FUND_CRNCY",CCY,"Fill=0") -> 296.1253225 | N146: =-_xll.BDP(TKR,"CF_CAP_EXPEND_PRPTY_ADD","EQY_FUND_RELATIVE_PERIOD",N$53,"EQY_FUND_CRNCY",CCY,"Fill=0") -> 97.9324537 | O146: =IF(ISNUMBER(O$151),O$151,IF(ISNUMBER(O$152),O$152,"")) -> 77.807 | P146: 130.473 | Q146: 191.809 | R146: 158.8293552 | S146: 131.3701618 | T146: 138.0577034
A147: 15 | E147: % of Revenue | H147: Edit Row | I147: =IFERROR(I146/I$55,"") -> 0.0675049073 | J147: 0.05219269604 | K147: 0.04873568187 | L147: 0.03774948072 | M147: 0.04153823573 | N147: 0.02608695652 | O147: =IFERROR(O146/O$55,"") -> 0.02725170606 | P147: 0.04935531644 | Q147: 0.08652220512 | R147: 0.1250423225 | S147: 0.1544127843 | T147: 0.2156439948 | W147: 9 | X147: 5
O149: =IF($O$151<>"",1, IF($O$152<>"",2,3 )) -> 1 | P149: =IF($P$151<>"",1, IF($P$152<>"",2,3 )) -> 1 | Q149: =IF($Q$151<>"",1, IF($Q$152<>"",2,3 )) -> 1 | R149: =IF($R$151<>"",1, IF($R$152<>"",2,3 )) -> 2 | S149: =IF($S$151<>"",1, IF($S$152<>"",2,3 )) -> 2 | T149: =IF($T$151<>"",1, IF($T$152<>"",2,3 )) -> 2
O150: Click on a cell below to select assumption (selected cells are highlighted in blue)
B151: 1 | H151: BEst Consensus Capital Expenditure | O151: =IFERROR(-_xll.BDP(TKR,"BEST_CAPEX","BEST_FPERIOD_OVERRIDE",O$53,"EQY_FUND_CRNCY",CCY),"") -> 77.807 | P151: =IFERROR(-_xll.BDP(TKR,"BEST_CAPEX","BEST_FPERIOD_OVERRIDE",P$53,"EQY_FUND_CRNCY",CCY),"") -> 130.473 | Q151: =IFERROR(-_xll.BDP(TKR,"BEST_CAPEX","BEST_FPERIOD_OVERRIDE",Q$53,"EQY_FUND_CRNCY",CCY),"") -> 191.809 | R151: =IFERROR(-_xll.BDP(TKR,"BEST_CAPEX","BEST_FPERIOD_OVERRIDE",R$53,"EQY_FUND_CRNCY",CCY),"") ->  | S151: =IFERROR(-_xll.BDP(TKR,"BEST_CAPEX","BEST_FPERIOD_OVERRIDE",S$53,"EQY_FUND_CRNCY",CCY),"") ->  | T151: =IFERROR(-_xll.BDP(TKR,"BEST_CAPEX","BEST_FPERIOD_OVERRIDE",T$53,"EQY_FUND_CRNCY",CCY),"") -> 
B152: 1 | H152: 5 Year Rolling Average | O152: =IFERROR(AVERAGE(J146:N146),"") -> 553.393349 | P152: 356.8072281 | Q152: 203.9795181 | R152: 158.8293552 | S152: 131.3701618 | T152: 138.0577034
B153: 1 | H153: Last Year's Capital Expenditure | O153: =IF(ISBLANK(N146),"",N146) -> 97.9324537 | P153: 77.807 | Q153: 130.473 | R153: 191.809 | S153: 158.8293552 | T153: 131.3701618
B155: 2 | E155: >> | H155: ="Input ("&CCY&")" -> Input (CAD) | O155: Input | P155: Input | Q155: Input | R155: Input | S155: Input | T155: Input | X155: 5
L157: Highlight estimates if… | M157: Less than | N157: Greater than
H158: Capex as a % of Revenue YoY change | M158: -0.05 | N158: 0.05 | O158: =IFERROR(O147-N147,"NA") -> 0.001164749534 | P158: 0.02210361039 | Q158: 0.03716688868 | R158: 0.03852011734 | S158: 0.0293704618 | T158: 0.06123121054
C159: 151 | H159: The ratio Capex / Depr & Amort | M159: =1/N159 -> 0.8 | N159: 1.25 | O159: =IFERROR(O146/O128,"NA") -> 0.107674211 | P159: 0.1803929647 | Q159: 0.3013221105 | R159: 0.4354722172 | S159: 0.5377577464 | T159: 0.7510014746 | AC159: =IF(ISNUMBER(AC$82),AC$82,IF(ISNUMBER(AC$83),AC$83,"NA")) -> NA | AD159: NA | AE159: NA | AF159: NA | AG159: NA | AH159: NA
C160: 151 | H160: Number of analysts estimating Capex | M160: 3 | O160: =_xll.BDP(TKR,"BEST_CAPEX","BEST_CONSENSUS_STAT_OVERRIDE=NUMEST","BEST_FPERIOD_OVERRIDE",O$53,"Fill=0") -> 6 | P160: =_xll.BDP(TKR,"BEST_CAPEX","BEST_CONSENSUS_STAT_OVERRIDE=NUMEST","BEST_FPERIOD_OVERRIDE",P$53,"Fill=0") -> 6 | Q160: =_xll.BDP(TKR,"BEST_CAPEX","BEST_CONSENSUS_STAT_OVERRIDE=NUMEST","BEST_FPERIOD_OVERRIDE",Q$53,"Fill=0") -> 2 | R160: =_xll.BDP(TKR,"BEST_CAPEX","BEST_CONSENSUS_STAT_OVERRIDE=NUMEST","BEST_FPERIOD_OVERRIDE",R$53,"Fill=0") -> 0 | S160: =_xll.BDP(TKR,"BEST_CAPEX","BEST_CONSENSUS_STAT_OVERRIDE=NUMEST","BEST_FPERIOD_OVERRIDE",S$53,"Fill=0") -> 0 | T160: =_xll.BDP(TKR,"BEST_CAPEX","BEST_CONSENSUS_STAT_OVERRIDE=NUMEST","BEST_FPERIOD_OVERRIDE",T$53,"Fill=0") -> 0
B163: 3 | E163: % YoY Growth | J163: =IFERROR(J146/I146-1,"") -> -0.0543730925 | K163: -0.1566137128 | L163: -0.5332501419 | M163: -0.2908193928 | N163: -0.6692871354 | O163: -0.2055034153 | P163: 0.6768799722 | Q163: 0.4701049259 | R163: -0.1719400276 | S163: -0.1728848764 | T163: 0.05090609257
E164: (-) Changes in Net Working Capital | I164: =_xll.BDP(TKR,"NET_WORKING_CAPITAL_INVESTMENT","EQY_FUND_RELATIVE_PERIOD",I$53,"EQY_FUND_CRNCY",CCY,"Fill=0") -> 275.6524026 | J164: =_xll.BDP(TKR,"NET_WORKING_CAPITAL_INVESTMENT","EQY_FUND_RELATIVE_PERIOD",J$53,"EQY_FUND_CRNCY",CCY,"Fill=0") -> 262.377878 | K164: =_xll.BDP(TKR,"NET_WORKING_CAPITAL_INVESTMENT","EQY_FUND_RELATIVE_PERIOD",K$53,"EQY_FUND_CRNCY",CCY,"Fill=0") -> 169.0335 | L164: =_xll.BDP(TKR,"NET_WORKING_CAPITAL_INVESTMENT","EQY_FUND_RELATIVE_PERIOD",L$53,"EQY_FUND_CRNCY",CCY,"Fill=0") -> -597.3261 | M164: =_xll.BDP(TKR,"NET_WORKING_CAPITAL_INVESTMENT","EQY_FUND_RELATIVE_PERIOD",M$53,"EQY_FUND_CRNCY",CCY,"Fill=0") -> -1178.9283 | N164: =_xll.BDP(TKR,"NET_WORKING_CAPITAL_INVESTMENT","EQY_FUND_RELATIVE_PERIOD",N$53,"EQY_FUND_CRNCY",CCY,"Fill=0") -> -434.0623 | O164: =O$55*O165 -> -178.6611964 | P164: -205.3314837 | Q164: -210.7118877 | R164: -131.1595325 | S164: -77.28081689 | T164: -54.98032103
A165: 11 | E165: % of Revenue | H165: Edit Row | I165: =IFERROR(I164/I$55,"") -> 0.01658857128 | J165: 0.01291008141 | K165: 0.009208424461 | L165: -0.05400124565 | M165: -0.1653712057 | N165: -0.1156242279 | O165: =IF(ISNUMBER(O$169),O$169,IF(ISNUMBER(O$170),O$170,"")) -> -0.06257563468 | P165: -0.0776727779 | Q165: -0.09504901838 | R165: -0.1032585729 | S165: -0.09083604636 | T165: -0.08587841005 | W165: 7 | X165: 3
O167: 1 | P167: 1 | Q167: 1 | R167: 1 | S167: 1 | T167: 1
O168: Click on a cell below to select assumption (selected cells are highlighted in blue)
B169: 1 | H169: 5 Year Rolling Average | O169: =IFERROR(AVERAGE(J165:N165),0) -> -0.06257563468 | P169: =AVERAGE(K165:O165) -> -0.0776727779 | Q169: =AVERAGE(L165:P165) -> -0.09504901838 | R169: =AVERAGE(M165:Q165) -> -0.1032585729 | S169: =AVERAGE(N165:R165) -> -0.09083604636 | T169: =AVERAGE(O165:S165) -> -0.08587841005
B171: 2 | E171: << | H171: Input (%) | O171: Input | P171: Input | Q171: Input | R171: Input | S171: Input | T171: Input | X171: 3
L173: Highlight estimates if… | M173: Less than | N173: Greater than
H174: Change in NWC as a % of Revenue YoY change | M174: -0.05 | N174: 0.05 | O174: =O165-N165 -> 0.05304859324 | P174: -0.01509714322 | Q174: -0.01737624047 | R174: -0.008209554546 | S174: 0.01242252656 | T174: 0.004957636312 | AC174: =IF(ISNUMBER(AC$82),AC$82,IF(ISNUMBER(AC$83),AC$83,"NA")) -> NA | AD174: NA | AE174: NA | AF174: NA | AG174: NA | AH174: NA
E177: (+) Changes in Net Long Term Deferred Tax Liabilities | I177: =IF(ISBLANK('Additional Data'!F55),"",'Additional Data'!F55) -> 38.2574914 | J177: =IF(ISBLANK('Additional Data'!G55),"",'Additional Data'!G55) -> 121.5165428 | K177: =IF(ISBLANK('Additional Data'!H55),"",'Additional Data'!H55) -> -41.286 | L177: =IF(ISBLANK('Additional Data'!I55),"",'Additional Data'!I55) -> 22.5525 | M177: =IF(ISBLANK('Additional Data'!J55),"",'Additional Data'!J55) -> -216.5277 | N177: =IF(ISBLANK('Additional Data'!K55),"",'Additional Data'!K55) -> 24.6864 | O177: =O$55*O178 -> -10.29451885 | P177: -14.59918591 | Q177: -13.69423693 | R177: -9.933627646 | S177: -2.816070695 | T177: -3.38492281
A178: 11 | E178: % of Revenue | H178: Edit Row | I178: =IFERROR(I177/I$55,"") -> 0.00230230942 | J178: 0.005979118638 | K178: -0.00224913412 | L178: 0.002038857991 | M178: -0.03037287918 | N178: 0.006575890005 | O178: =IF(ISNUMBER(O$182),O$182,IF(ISNUMBER(O$183),O$183,"")) -> -0.003605629334 | P178: -0.005522578928 | Q178: -0.00617726789 | R178: -0.007820493066 | S178: -0.003310015842 | T178: -0.005287197012 | W178: 7 | X178: 3
O180: 1 | P180: 1 | Q180: 1 | R180: 1 | S180: 1 | T180: 1
O181: Click on a cell below to select assumption (selected cells are highlighted in blue)
B182: 1 | H182: 5 Year Rolling Average | O182: =AVERAGE(J178:N178) -> -0.003605629334 | P182: -0.005522578928 | Q182: -0.00617726789 | R182: -0.007820493066 | S182: -0.003310015842 | T182: -0.005287197012
B184: 2 | E184: >> | H184: Input (%) | O184: Input | P184: Input | Q184: Input | R184: Input | S184: Input | T184: Input | X184: 3
L186: Highlight estimates if… | M186: Less than | N186: Greater than
H187: Change in Net LT Def Tax Liab as a % of Revenue YoY chg | M187: -0.05 | N187: 0.05 | O187: =O178-N178 -> -0.01018151934 | P187: -0.001916949594 | Q187: -0.0006546889616 | R187: -0.001643225176 | S187: 0.004510477223 | T187: -0.00197718117
E190: (+) Other User Estimated Non-Cash Adjustments | O190: =IF(ISNUMBER(O194),O194,0) -> 0 | P190: 0 | Q190: 0 | R190: 0 | S190: 0 | T190: 0
A191: 5 | E191: % of Revenue | H191: Edit Row | O191: =IFERROR(O190/O$55,"") -> 0 | P191: 0 | Q191: 0 | R191: 0 | S191: 0 | T191: 0
H194: ="Input ("&CCY&")" -> Input (CAD) | O194: 0 | P194: 0 | Q194: 0 | R194: 0 | S194: 0 | T194: 0
E197: (=) Free Cash Flow | I197: =I126+I128-I146-I164+I177+I190 -> 1995.644258 | J197: =J126+J128-J146-J164+J177+J190 -> 3223.144831 | K197: 1988.632893 | L197: 1439.015077 | M197: -2088.841239 | N197: 1118.385687 | O197: 586.4326113 | P197: 490.2318488 | Q197: 283.9135371 | R197: 123.3415072 | S197: 51.90308358 | T197: -3.672238296 | U197: =T197*T207+S197*(1-T207) -> 11.81596616
A198: 6 | E198: % Margin | H198: Edit Row | I198: =IF(ISERROR(I197/I$55),"",I197/I$55) -> 0.1200964937 | J198: =IF(ISERROR(J197/J$55),"",J197/J$55) -> 0.1585921134 | K198: 0.1083345951 | L198: 0.1300941089 | M198: -0.2930069575 | N198: 0.2979122619 | O198: =IF(ISERROR(O197/O$55),"",O197/O$55) -> 0.2053965472 | P198: 0.1854448662 | Q198: 0.1280692006 | R198: 0.09710363987 | S198: 0.06100700143 | T198: -0.005735979351
L201: Highlight estimates if… | M201: Less than | N201: Greater than
H202: Free Cash Flow Margin YoY Change | M202: -0.05 | N202: 0.05 | O202: =O198-N198 -> -0.09251571469 | P202: =P198-O198 -> -0.01995168098 | Q202: -0.0573756656 | R202: -0.03096556072 | S202: -0.03609663844 | T202: -0.06674298078
B205: 3 | E205: % YoY Growth | J205: =IF(ISERROR(J197/I197-1),"",J197/I197-1) -> 0.6150898732 | K205: =IFERROR(K197/J197-1,"") -> -0.3830147271 | L205: -0.2763797268 | M205: -2.451577035 | N205: -1.535409617 | O205: -0.4756436727 | P205: -0.1640440192 | Q205: -0.4208586451 | R205: -0.5655666566 | S205: -0.5791920759 | T205: -1.070751833
E207: % of the Free Cash Flow to be discounted | O207: =(IF(_xll.BDP(TKR,"BEST_PERIOD_END_DATE","BEST_FPERIOD_OVERRIDE",O$53)-_xll.BToday()<0,0,_xll.BDP(TKR,"BEST_PERIOD_END_DATE","BEST_FPERIOD_OVERRIDE",O$53)-_xll.BToday())/(_xll.BDP(TKR,"BEST_PERIOD_END_DATE","BEST_FPERIOD_OVERRIDE",O$53)-_xll.BDP(TKR,"BEST_PERIOD_END_DATE","BEST_FPERIOD_OVERRIDE",N$53))) -> 0.2786885246 | P207: 1 | Q207: 1 | R207: 1 | S207: 1 | T207: =1-O207 -> 0.7213114754
E208: Period for Discount Factor (Mid-Year Convention) | O208: =1*O207/2 -> 0.1393442623 | P208: =2-$T$207-0.5 -> 0.7786885246 | Q208: =3-$T$207-0.5 -> 1.778688525 | R208: =4-$T$207-0.5 -> 2.778688525 | S208: =5-$T$207-0.5 -> 3.778688525 | T208: =IF(T207=0,0,T207/2+4+O207) -> 4.639344262
E209: ="Discount Factor @ "&TEXT(P47,"0.0%")&" WACC" -> Discount Factor @ 12.0% WACC | O209: =IF(O208<>0,1/(1+$P$47)^O208,0) -> 0.9842824397 | P209: =1/(1+$P$47)^P208 -> 0.9152747295 | Q209: =1/(1+$P$47)^Q208 -> 0.8169123601 | R209: =1/(1+$P$47)^R208 -> 0.7291207575 | S209: =1/(1+$P$47)^S208 -> 0.6507639069 | T209: =1/(1+$P$47)^T208 -> 0.5901028553
E210: Present Value of Free Cash Flow (5 Years) | O210: =O197*O209*O207 -> 160.8632863 | P210: 448.6968228 | Q210: 231.9324777 | R210: 89.93085314 | S210: 33.77665345 | T210: -1.563080744
E211: EBITDA | I211: =IF(OR(ISBLANK(I110)+ISBLANK(I128)),"",I110+I128) -> 4461.944551 | J211: 5682.449959 | K211: 3471.330849 | L211: 1236.696292 | M211: -2755.116517 | N211: 757.5694407 | O211: 472.997 | P211: 412.29 | Q211: 267.751 | R211: 153.4134517 | S211: 102.7550514 | T211: 77.32376208 | U211: =T211*T207+S211*(1-T207) -> 84.41117056
A212: 7 | E212: % Margin | H212: Edit Row | I212: =IFERROR(I211/I$55,"") -> 0.2685167426 | J212: 0.2796001407 | K212: 0.189107413 | L212: 0.111803486 | M212: -0.3864670483 | N212: 0.2017991004 | O212: 0.1656660096 | P212: 0.1559610296 | Q212: 0.120778519 | R212: 0.120778519 | S212: 0.120778519 | T212: 0.120778519
L216: Highlight estimates if… | M216: Less than | N216: Greater than
H217: EBITDA Margin YoY Change | M217: -0.05 | N217: 0.05 | O217: =O212-N212 -> -0.03613309085 | P217: -0.00970498 | Q217: -0.03518251064 | R217: 0 | S217: =S212-R212 -> 0 | T217: 0
B220: 3 | E220: % YoY Growth | J220: =IFERROR(J211/I211-1,"") -> 0.2735366598 | K220: =IFERROR(K211/J211-1,"") -> -0.3891136968 | L220: -0.6437400105 | M220: -3.227803653 | N220: -1.274968204 | O220: -0.3756387539 | P220: -0.1283454229 | Q220: -0.3505760508 | R220: -0.427029398 | S220: -0.3302083342 | T220: -0.2474942977
E222: Output Analysis
E224: Perpetuity Growth Method - Value per Share | N224: EBITDA Multiple Method - Value per Share
F225: Free Cash Flow at Year 5 | K225: =U197 -> 11.81596616 | O225: Terminal EBITDA at Year 5 | T225: =U211 -> 84.41117056 | BC225: BF
F226: WACC | K226: =P47 -> 0.1204074931 | O226: WACC | T226: =P47 -> 0.1204074931
F227: Perpetuity Growth Rate | K227: =P48 -> 0.02 | O227: Exit Enterprise Value / EBITDA | T227: =P49 -> 4.028862043
F228: Perpetuity Value at End of Year 5 | K228: =(K225*(1+K227))/(K226-K227) -> 120.0337257 | O228: Terminal Value at End of Year 5 | T228: =T225*T227 -> 340.0809611
F230: ="Present Value of Perpetuity (@ "&TEXT(P47,"0.0%")&" WACC)" -> Present Value of Perpetuity (@ 12.0% WACC) | K230: =K228/(1+K226)^5 -> 67.98659062 | O230: ="Present Value of Terminal Value (@ "&TEXT(P47,"0.0%")&" WACC)" -> Present Value of Terminal Value (@ 12.0% WACC) | T230: =T228/(1+T226)^5 -> 192.6204069
F231: ="(+) Present Value of Free Cash Flows (@ "&TEXT(P47,"0.0%")&" WACC)" -> (+) Present Value of Free Cash Flows (@ 12.0% WACC) | K231: =SUM($O$210:$T$210) -> 963.6370126 | O231: ="(+) Present Value of Free Cash Flows (@ "&TEXT(P47,"0.0%")&" WACC)" -> (+) Present Value of Free Cash Flows (@ 12.0% WACC) | T231: =SUM($O$210:$T$210) -> 963.6370126
F232: (=) Current Enterprise Value | J232: =K231+K230 -> 1031.623603 | O232: (=) Current Enterprise Value | S232: =SUM(T230:T231) -> 1156.25742
F234: Short Term Debt | K234: =_xll.BDP(TKR,"BS_ST_BORROW", "FUND_PER",PER,"EQY_FUND_CRNCY",CCY,"Fill=0") -> 0 | O234: Short Term Debt | T234: =_xll.BDP(TKR,"BS_ST_BORROW", "FUND_PER",PER,"EQY_FUND_CRNCY",CCY,"Fill=0") -> 0
F235: (+) Long Term Debt | K235: =_xll.BDP(TKR,"BS_LT_BORROW", "FUND_PER",PER,"EQY_FUND_CRNCY",CCY,"Fill=0") -> 2135.2863 | O235: (+) Long Term Debt | T235: =_xll.BDP(TKR,"BS_LT_BORROW", "FUND_PER",PER,"EQY_FUND_CRNCY",CCY,"Fill=0") -> 2135.2863
F236: (-) Cash and Marketable Securities | K236: =IF(J236<>"",J236,_xll.BDP(TKR,"CASH_AND_MARKETABLE_SECURITIES","FUND_PER",PER,"EQY_FUND_CRNCY",CCY,"Fill=0")) -> 3616.3519 | O236: (-) Cash and Marketable Securities | T236: =IF(S236<>"",S236,_xll.BDP(TKR,"CASH_AND_MARKETABLE_SECURITIES", "FUND_PER",PER,"EQY_FUND_CRNCY",CCY,"Fill=0")) -> 3616.3519
F237: (-) Current Net Debt | K237: =SUM(K234:K235)-SUM(K236) -> -1481.0656 | O237: (-) Current Net Debt | T237: =SUM(T234:T235)-SUM(T236) -> -1481.0656
F238: (-) Current Preferred and Minority Interest | K238: =_xll.BDP(TKR,"PREFERRED_EQUITY_&_MINORITY_INT", "FUND_PER",PER,"EQY_FUND_CRNCY",CCY,"Fill=0") -> 0 | O238: (-) Current Preferred and Minority Interest | T238: =_xll.BDP(TKR,"PREFERRED_EQUITY_&_MINORITY_INT", "FUND_PER",PER,"EQY_FUND_CRNCY",CCY,"Fill=0") -> 0
F239: (=) Equity Value | K239: =SUM(J232,-K237,-K238) -> 2512.689203 | O239: =F239 -> (=) Equity Value | T239: =SUM(S232,-T237,-T238) -> 2637.32302
F241: Shares outstanding | K241: =IFERROR(_xll.BDP(TKR,"CRNCY_ADJ_MKT_CAP", "SCALING_FORMAT=MLN", "EQY_FUND_CRNCY",CCY,"Fill=0")/_xll.BDP(TKR,"PX_LAST", "SCALING_FORMAT=MLN", "EQY_FUND_CRNCY",CCY,"Fill=0"),_xll.BDP(TKR,"EQY_SH_OUT_TOT_MULT_SH", "EQY_FUND_CRNCY",CCY,"Fill=0")) -> 525.300066 | O241: Shares outstanding | T241: =IFERROR(_xll.BDP(TKR,"CRNCY_ADJ_MKT_CAP", "SCALING_FORMAT=MLN", "EQY_FUND_CRNCY",CCY,"Fill=0")/_xll.BDP(TKR,"PX_LAST", "SCALING_FORMAT=MLN", "EQY_FUND_CRNCY",CCY,"Fill=0"),_xll.BDP(TKR,"EQY_SH_OUT_TOT_MULT_SH", "EQY_FUND_CRNCY",CCY,"Fill=0")) -> 525.300066
F242: ="Estimated Value per Share ("&CCY&")" -> Estimated Value per Share (CAD) | J242: =K239/K241 -> 4.783340734 | O242: ="Estimated Value per Share ("&CCY&")" -> Estimated Value per Share (CAD) | S242: =T239/T241 -> 5.020602871
F243: ="Current Price ("&CCY&")" -> Current Price (CAD) | K243: =_xll.BDP(TKR,"CRNCY_ADJ_PX_LAST","EQY_FUND_CRNCY",CCY,"Fill=B") -> 10.15 | O243: ="Current Price ("&_xll.BDP(TKR,"CRNCY","Fill=b")&")" -> Current Price (CAD) | T243: =_xll.BDP(TKR,"PX_LAST","Fill=B") -> 10.15
F244: Estimated Upside | J244: =IFERROR(J242/K243-1,"") -> -0.5287349031 | O244: Estimated Upside | S244: =IFERROR(S242/T243-1,"") -> -0.5053593231
E247: Perpetuity Growth Method - Sensitivity Analysis | N247: EBITDA Multiple Method - Sensitivity Analysis
J249: ="Enterprise Value in Millions of "&CCY -> Enterprise Value in Millions of CAD | S249: ="Enterprise Value in Millions of "&CCY -> Enterprise Value in Millions of CAD
F250: Incremental change | J250: Perpetuity Growth | N250: Incremental change | S250: Terminal EBITDA Multiple
F251: 0.005 | N251: 1.5 | O251: 0.005
H252: =H276 -> 0.01 | I252: =I276 -> 0.015 | J252: =J276 -> 0.02 | K252: =K276 -> 0.025 | L252: =L276 -> 0.03 | Q252: =Q276 -> 1.028862043 | R252: =R276 -> 2.528862043 | S252: =S276 -> 4.028862043 | T252: =T276 -> 5.528862043 | U252: =U276 -> 7.028862043
G253: =G277 -> 0.1104074931 | H253: =IFERROR((($K$225*(1+H$252))/($G253-H$252))/(1+$G253)^5+ ($O$197*$O$207)/(1+$G253)^$O$208 + ($P$197*$P$207)/(1+$G253)^$P$208 + ($Q$197*$Q$207)/(1+$G253)^$Q$208 + ($R$197*$R$207)/(1+$G253)^$R$208 + ($S$197*$S$207)/(1+$G253)^$S$208 + ($T$197*$T$207)/(1+$G253)^$T$208,"-") -> 1044.48217 | I253: 1048.53876 | J253: 1053.04405 | K253: 1058.076846 | L253: 1063.735553 | P253: =P277 -> 0.1104074931 | Q253: =IFERROR(($T$225*Q$252)/(1+$P253)^5+ ($O$197*$O$207)/(1+$P253)^$O$208 + ($P$197*$P$207)/(1+$P253)^$P$208 + ($Q$197*$Q$207)/(1+$P253)^$Q$208 + ($R$197*$R$207)/(1+$P253)^$R$208 + ($S$197*$S$207)/(1+$P253)^$S$208 + ($T$197*$T$207)/(1+$P253)^$T$208,"-") -> 1025.520934 | R253: 1100.524043 | S253: 1175.527151 | T253: 1250.53026 | U253: 1325.533368
E254: Discount | G254: =G278 -> 0.1154074931 | H254: 1034.399774 | I254: 1038.00612 | J254: 1041.99046 | K254: 1046.415509 | L254: 1051.358669 | N254: Discount | P254: =P278 -> 0.1154074931 | Q254: 1019.125271 | R254: 1092.462314 | S254: 1165.799357 | T254: 1239.1364 | U254: 1312.473442
E255: Rate | G255: =G279 -> 0.1204074931 | H255: =IFERROR((($K$225*(1+H$252))/($G255-H$252))/(1+$G255)^5+ ($O$197*$O$207)/(1+$G255)^$O$208 + ($P$197*$P$207)/(1+$G255)^$P$208 + ($Q$197*$Q$207)/(1+$G255)^$Q$208 + ($R$197*$R$207)/(1+$G255)^$R$208 + ($S$197*$S$207)/(1+$G255)^$S$208 + ($T$197*$T$207)/(1+$G255)^$T$208,"-") -> 1024.859651 | I255: 1028.081203 | J255: 1031.623603 | K255: 1035.537295 | L255: 1039.883881 | N255: Rate | P255: =P279 -> 0.1204074931 | Q255: 1012.827038 | R255: 1084.542229 | S255: 1156.25742 | T255: 1227.97261 | U255: 1299.687801
E256: (WACC) | G256: =G280 -> 0.1254074931 | H256: =IFERROR((($K$225*(1+H$252))/($G256-H$252))/(1+$G256)^5+ ($O$197*$O$207)/(1+$G256)^$O$208 + ($P$197*$P$207)/(1+$G256)^$P$208 + ($Q$197*$Q$207)/(1+$G256)^$Q$208 + ($R$197*$R$207)/(1+$G256)^$R$208 + ($S$197*$S$207)/(1+$G256)^$S$208 + ($T$197*$T$207)/(1+$G256)^$T$208,"-") -> 1015.797679 | I256: 1018.688142 | J256: 1021.852824 | K256: 1025.332689 | L256: 1029.177291 | N256: (WACC) | P256: =P280 -> 0.1254074931 | Q256: 1006.62405 | R256: 1076.76024 | S256: 1146.89643 | T256: 1217.03262 | U256: 1287.16881
G257: =G281 -> 0.1304074931 | H257: =IFERROR((($K$225*(1+H$252))/($G257-H$252))/(1+$G257)^5+ ($O$197*$O$207)/(1+$G257)^$O$208 + ($P$197*$P$207)/(1+$G257)^$P$208 + ($Q$197*$Q$207)/(1+$G257)^$Q$208 + ($R$197*$R$207)/(1+$G257)^$R$208 + ($S$197*$S$207)/(1+$G257)^$S$208 + ($T$197*$T$207)/(1+$G257)^$T$208,"-") -> 1007.160248 | I257: 1009.764072 | J257: 1012.603733 | K257: 1015.712793 | L257: 1019.131497 | P257: =P281 -> 0.1304074931 | Q257: 1000.514188 | R257: 1069.112913 | S257: 1137.711638 | T257: 1206.310363 | U257: 1274.909088
J259: ="Value in "&CCY -> Value in CAD | S259: ="Value in "&CCY -> Value in CAD
H260: =H276 -> 0.01 | I260: =I276 -> 0.015 | J260: =J276 -> 0.02 | K260: =K276 -> 0.025 | L260: =L276 -> 0.03 | Q260: =Q276 -> 1.028862043 | R260: =R276 -> 2.528862043 | S260: =S276 -> 4.028862043 | T260: =T276 -> 5.528862043 | U260: =U276 -> 7.028862043
G261: =G277 -> 0.1104074931 | H261: =IFERROR((H253-SUM($K$237:$K$238))/$K$241,"-") -> 4.807819251 | I261: 4.815541675 | J261: 4.824118279 | K261: 4.833699081 | L261: 4.844471413 | P261: =P277 -> 0.1104074931 | Q261: =IFERROR((Q253-SUM($T$237:$T$238))/$T$241,"-") -> 4.771723243 | R261: 4.914504699 | S261: 5.057286156 | T261: 5.200067612 | U261: 5.342849069
G262: =G278 -> 0.1154074931 | H262: 4.788625657 | I262: 4.795490964 | J262: 4.803075848 | K262: 4.811499699 | L262: 4.820909862 | P262: =P278 -> 0.1154074931 | Q262: 4.759547986 | R262: 4.899157797 | S262: 5.038767608 | T262: 5.178377418 | U262: 5.317987229
G263: =G279 -> 0.1204074931 | H263: 4.770464375 | I263: 4.776597159 | J263: 4.783340734 | K263: 4.790791127 | L263: 4.799065609 | P263: =P279 -> 0.1204074931 | Q263: 4.747558204 | R263: 4.884080537 | S263: 5.020602871 | T263: 5.157125205 | U263: 5.293647538
G264: =G280 -> 0.1254074931 | H264: 4.753213336 | I264: 4.758715836 | J264: 4.764740357 | K264: 4.771364885 | L264: 4.778683754 | P264: =P280 -> 0.1254074931 | Q264: 4.735749739 | R264: 4.86926617 | S264: 5.0027826 | T264: 5.136299031 | U264: 5.269815462
G265: =G281 -> 0.1304074931 | H265: 4.736770484 | I265: 4.741727316 | J265: 4.747133105 | K265: 4.753051741 | L265: 4.759559839 | P265: =P281 -> 0.1304074931 | Q265: 4.724118554 | R265: 4.854708153 | S265: 4.985297752 | T265: 5.115887351 | U265: 5.24647695
J267: Upside Potential | S267: Upside Potential
H268: =H276 -> 0.01 | I268: =I276 -> 0.015 | J268: =J276 -> 0.02 | K268: =K276 -> 0.025 | L268: =L276 -> 0.03 | Q268: =Q276 -> 1.028862043 | R268: =R276 -> 2.528862043 | S268: =S276 -> 4.028862043 | T268: =T276 -> 5.528862043 | U268: =U276 -> 7.028862043
G269: =G277 -> 0.1104074931 | H269: =IFERROR(H261/$K$243-1,"-") -> -0.5263232265 | I269: -0.5255623965 | J269: -0.5247174109 | K269: -0.5237734896 | L269: -0.522712176 | P269: =P277 -> 0.1104074931 | Q269: =IFERROR(Q261/$T$243-1,"-") -> -0.5298794835 | R269: -0.5158123449 | S269: -0.5017452063 | T269: -0.4876780678 | U269: -0.4736109292
G270: =G278 -> 0.1154074931 | H270: -0.5282142209 | I270: -0.527537836 | J270: -0.5267905568 | K270: -0.5259606208 | L270: -0.5250335111 | P270: =P278 -> 0.1154074931 | Q270: -0.5310790161 | R270: -0.517324355 | S270: -0.5035696938 | T270: -0.4898150327 | U270: -0.4760603715
G271: =G279 -> 0.1204074931 | H271: -0.5300035099 | I271: -0.5293992946 | J271: -0.5287349031 | K271: -0.5280008742 | L271: -0.5271856543 | P271: =P279 -> 0.1204074931 | Q271: -0.5322602755 | R271: -0.5188097993 | S271: -0.5053593231 | T271: -0.4919088468 | U271: -0.4784583706
G272: =G280 -> 0.1254074931 | H272: -0.5317031196 | I272: -0.5311610014 | J272: -0.5305674525 | K272: -0.5299147896 | L272: -0.5291937188 | P272: =P280 -> 0.1254074931 | Q272: -0.5334236711 | R272: -0.5202693429 | S272: -0.5071150147 | T272: -0.4939606866 | U272: -0.4808063584
G273: =G281 -> 0.1304074931 | H273: -0.533323105 | I273: -0.5328347472 | J273: -0.5323021571 | K273: -0.5317190403 | L273: -0.5310778484 | P273: =P281 -> 0.1304074931 | Q273: -0.5345696006 | R273: -0.5217036302 | S273: -0.5088376599 | T273: -0.4959716896 | U273: -0.4831057192
J275: Implied Exit EV / EBITDA Multiple | S275: Implied Perpetuity Growth
H276: =IF(H251<>"",H$251,I276-F251) -> 0.01 | I276: =IF(I251<>"",I$251,J276-F251) -> 0.015 | J276: =IF(J251<>"",J251,K227) -> 0.02 | K276: =IF(K251<>"",K$251,J276+F251) -> 0.025 | L276: =IF(L251<>"",L$251,K276+F251) -> 0.03 | Q276: =IF(Q251<>"",Q251,R276-N251) -> 1.028862043 | R276: =IF(R251<>"",R251,S276-N251) -> 2.528862043 | S276: =IF(S251<>"",S251,T227) -> 4.028862043 | T276: =IF(T251<>"",T251,S276+N251) -> 5.528862043 | U276: =IF(U251<>"",U251,T276+N251) -> 7.028862043
G277: =IF(F253<>"",F253,G278-F251) -> 0.1104074931 | H277: =IFERROR((($K$225*(1+H$276))/($G277-H$276))/$T$225,"-") -> 1.408071037 | I277: 1.489199471 | J277: 1.579301546 | K277: 1.679953289 | L277: 1.79312274 | P277: =IF(O253<>"",O253,P278-O251) -> 0.1104074931 | Q277: =IFERROR((Q$276*$T$225*$P277-$K$225)/(Q$276*$T$225+$K$225),"-") -> -0.02257530799 | R277: 0.05216651575 | S277: 0.0731223214 | T277: 0.08298813643 | U277: 0.08872532922
G278: =IF(F254<>"",F254,G279-F251) -> 0.1154074931 | H278: 1.341279246 | I278: 1.415041685 | J278: 1.496535429 | K278: 1.58704322 | L278: 1.688148183 | P278: =IF(O254<>"",O254,P279-O251) -> 0.1154074931 | Q278: -0.01817410979 | R278: 0.05690426529 | S278: 0.07795443181 | T278: 0.08786467114 | U278: 0.09362769766
G279: =IF(F255<>"",F255,K226) -> 0.1204074931 | H279: 1.280537026 | I279: 1.347919242 | J279: 1.422012334 | K279: 1.503871387 | L279: 1.594784894 | P279: =IF(O255<>"",O255,T226) -> 0.1204074931 | Q279: -0.01377291159 | R279: 0.06164201482 | S279: 0.08278654222 | T279: 0.09274120585 | U279: 0.0985300661
G280: =IF(F256<>"",F256,G279+F251) -> 0.1254074931 | H280: 1.225058088 | I280: 1.286876318 | J280: 1.354559239 | K280: 1.428982983 | L280: 1.511207345 | P280: =IF(O256<>"",O256,P279+O251) -> 0.1254074931 | Q280: -0.009371713392 | R280: 0.06637976435 | S280: 0.08761865263 | T280: 0.09761774056 | U280: 0.1034324345
G281: =IF(F257<>"",F257,G280+F251) -> 0.1304074931 | H281: 1.174186749 | I281: 1.231122732 | J281: 1.293215611 | K281: 1.361199235 | L281: 1.435953631 | P281: =IF(O257<>"",O257,P280+O251) -> 0.1304074931 | Q281: -0.004970515192 | R281: 0.07111751388 | S281: 0.09245076304 | T281: 0.1024942753 | U281: 0.108334803

Sheet Sheet1 (hidden)
C25: 1 | D25: =C25+1 -> 2 | E25: =D25+1 -> 3 | F25: 4 | G25: 5 | H25: 6 | I25: 7 | J25: 8 | K25: 9 | L25: 10 | M25: 11 | N25: 12 | O25: 13 | P25: 14 | Q25: 15 | R25: 16 | S25: 17 | T25: 18 | U25: 19 | V25: 20 | W25: 21 | X25: 22 | Y25: 23 | Z25: 24 | AA25: 25 | AB25: 26 | AC25: 27 | AD25: 28 | AE25: 29 | AF25: 30 | AG25: 31 | AH25: 32 | AI25: 33 | AJ25: 34 | AK25: 35 | AL25: 36 | AM25: 37 | AN25: 38 | AO25: 39 | AP25: 40 | AQ25: 41 | AR25: 42 | AS25: 43 | AT25: 44 | AU25: 45 | AV25: 46 | AW25: 47 | AX25: 48 | AY25: 49 | AZ25: 50 | BA25: 51 | BB25: 52 | BC25: 53 | BD25: 54 | BE25: 55 | BF25: 56 | BG25: 57 | BH25: 58 | BI25: 59 | BJ25: 60 | BK25: 61 | BL25: 62 | BM25: 63 | BN25: 64 | BO25: 65 | BP25: 66 | BQ25: =BP25+1 -> 67 | BR25: 68 | BS25: 69 | BT25: 70 | BU25: 71 | BV25: 72 | BW25: 73 | BX25: 74 | BY25: 75 | BZ25: 76 | CA25: 77 | CB25: 78 | CC25: 79 | CD25: 80 | CE25: 81 | CF25: 82 | CG25: 83 | CH25: 84 | CI25: 85 | CJ25: 86 | CK25: 87 | CL25: 88 | CM25: 89 | CN25: 90 | CO25: 91 | CP25: 92 | CQ25: 93 | CR25: 94 | CS25: 95 | CT25: 96 | CU25: 97 | CV25: 98 | CW25: 99 | CX25: 100 | CY25: =CX25+1 -> 101
C26: 1 | D26: =C26*(1+C27) -> 1.05 | E26: =D26*(1+D27) -> 1.099636364 | F26: 1.148620165 | G26: 1.196653372 | H26: 1.24343164 | I26: 1.288647336 | J26: 1.331992747 | K26: 1.373163432 | L26: 1.411861674 | M26: 1.447799971 | N26: 1.480704516 | O26: 1.510318606 | P26: 1.540524978 | Q26: 1.571335478 | R26: 1.602762187 | S26: 1.634817431 | T26: 1.66751378 | U26: 1.700864055 | V26: 1.734881336 | W26: 1.769578963 | X26: 1.804970542 | Y26: 1.841069953 | Z26: 1.877891352 | AA26: 1.915449179 | AB26: 1.953758163 | AC26: 1.992833326 | AD26: 2.032689993 | AE26: 2.073343793 | AF26: 2.114810668 | AG26: 2.157106882 | AH26: 2.20024902 | AI26: 2.244254 | AJ26: 2.28913908 | AK26: 2.334921861 | AL26: 2.381620299 | AM26: 2.429252705 | AN26: 2.477837759 | AO26: 2.527394514 | AP26: 2.577942404 | AQ26: 2.629501252 | AR26: 2.682091277 | AS26: 2.735733103 | AT26: 2.790447765 | AU26: 2.84625672 | AV26: 2.903181855 | AW26: 2.961245492 | AX26: 3.020470402 | AY26: 3.08087981 | AZ26: 3.142497406 | BA26: 3.205347354 | BB26: 3.269454301 | BC26: 3.334843387 | BD26: 3.401540255 | BE26: 3.46957106 | BF26: 3.538962481 | BG26: 3.609741731 | BH26: 3.681936565 | BI26: 3.755575297 | BJ26: 3.830686803 | BK26: 3.907300539 | BL26: 3.985446549 | BM26: 4.06515548 | BN26: 4.14645859 | BO26: 4.229387762 | BP26: 4.313975517 | BQ26: =BP26*(1+BP27) -> 4.400255027 | BR26: 4.488260128 | BS26: 4.57802533 | BT26: 4.669585837 | BU26: 4.762977554 | BV26: 4.858237105 | BW26: 4.955401847 | BX26: 5.054509884 | BY26: 5.155600082 | BZ26: 5.258712083 | CA26: 5.363886325 | CB26: 5.471164051 | CC26: 5.580587332 | CD26: 5.692199079 | CE26: 5.806043061 | CF26: 5.922163922 | CG26: 6.0406072 | CH26: 6.161419344 | CI26: 6.284647731 | CJ26: 6.410340686 | CK26: 6.5385475 | CL26: 6.66931845 | CM26: 6.802704819 | CN26: 6.938758915 | CO26: 7.077534093 | CP26: 7.219084775 | CQ26: 7.363466471 | CR26: 7.5107358 | CS26: 7.660950516 | CT26: 7.814169526 | CU26: 7.970452917 | CV26: 8.129861975 | CW26: 8.292459215 | CX26: 8.458308399 | CY26: =CX26*(1+CX27) -> 8.627474567
C27: 0.05 | D27: =C27-($C$27-$N$27)/11 -> 0.04727272727 | E27: =D27-($C$27-$N$27)/11 -> 0.04454545455 | F27: 0.04181818182 | G27: 0.03909090909 | H27: 0.03636363636 | I27: 0.03363636364 | J27: 0.03090909091 | K27: 0.02818181818 | L27: 0.02545454545 | M27: 0.02272727273 | N27: 0.02 | O27: =N27 -> 0.02 | P27: =O27 -> 0.02 | Q27: 0.02 | R27: 0.02 | S27: 0.02 | T27: 0.02 | U27: 0.02 | V27: 0.02 | W27: 0.02 | X27: 0.02 | Y27: 0.02 | Z27: 0.02 | AA27: 0.02 | AB27: 0.02 | AC27: 0.02 | AD27: 0.02 | AE27: 0.02 | AF27: 0.02 | AG27: 0.02 | AH27: 0.02 | AI27: 0.02 | AJ27: 0.02 | AK27: 0.02 | AL27: 0.02 | AM27: 0.02 | AN27: 0.02 | AO27: 0.02 | AP27: 0.02 | AQ27: 0.02 | AR27: 0.02 | AS27: 0.02 | AT27: 0.02 | AU27: 0.02 | AV27: 0.02 | AW27: 0.02 | AX27: 0.02 | AY27: 0.02 | AZ27: 0.02 | BA27: 0.02 | BB27: 0.02 | BC27: 0.02 | BD27: 0.02 | BE27: 0.02 | BF27: 0.02 | BG27: 0.02 | BH27: 0.02 | BI27: 0.02 | BJ27: 0.02 | BK27: 0.02 | BL27: 0.02 | BM27: 0.02 | BN27: 0.02 | BO27: 0.02 | BP27: 0.02 | BQ27: 0.02 | BR27: 0.02 | BS27: 0.02 | BT27: 0.02 | BU27: 0.02 | BV27: 0.02 | BW27: 0.02 | BX27: 0.02 | BY27: 0.02 | BZ27: 0.02 | CA27: 0.02 | CB27: =CA27 -> 0.02 | CC27: 0.02 | CD27: 0.02 | CE27: 0.02 | CF27: 0.02 | CG27: 0.02 | CH27: 0.02 | CI27: 0.02 | CJ27: 0.02 | CK27: 0.02 | CL27: 0.02 | CM27: 0.02 | CN27: 0.02 | CO27: 0.02 | CP27: 0.02 | CQ27: 0.02 | CR27: 0.02 | CS27: 0.02 | CT27: 0.02 | CU27: 0.02 | CV27: 0.02 | CW27: 0.02 | CX27: 0.02 | CY27: 0.02
B28: =NPV(B29,C26:CL26) -> 35.84208219
A29: Discount rate | B29: 0.05 | C29: 1 | D29: =C29*(1+C30) -> 1.026 | E29: =D29*(1+D30) -> 1.052676 | F29: 1.080045576 | G29: 1.108126761 | H29: 1.136938057 | I29: 1.166498446 | J29: 1.196827406 | K29: 1.227944918 | L29: 1.259871486 | M29: 1.292628145 | N29: 1.326236477 | O29: 1.360718625 | P29: 1.396097309 | Q29: 1.432395839 | R29: 1.469638131 | S29: 1.507848723 | T29: 1.547052789 | U29: 1.587276162 | V29: 1.628545342 | W29: 1.670887521 | X29: 1.714330597 | Y29: 1.758903192 | Z29: 1.804634675 | AA29: 1.851555177 | AB29: 1.899695611 | AC29: 1.949087697 | AD29: 1.999763977 | AE29: 2.051757841 | AF29: 2.105103544 | AG29: 2.159836237 | AH29: 2.215991979 | AI29: 2.27360777 | AJ29: 2.332721572 | AK29: 2.393372333 | AL29: 2.455600014 | AM29: 2.519445614 | AN29: 2.5849512 | AO29: 2.652159931 | AP29: 2.72111609 | AQ29: 2.791865108 | AR29: 2.864453601 | AS29: 2.938929394 | AT29: 3.015341559 | AU29: 3.093740439 | AV29: 3.174177691 | AW29: 3.25670631 | AX29: 3.341380675 | AY29: 3.428256572 | AZ29: 3.517391243 | BA29: 3.608843415 | BB29: 3.702673344 | BC29: 3.798942851 | BD29: 3.897715365 | BE29: 3.999055965 | BF29: 4.10303142 | BG29: 4.209710237 | BH29: 4.319162703 | BI29: 4.431460933 | BJ29: 4.546678917 | BK29: 4.664892569 | BL29: 4.786179776 | BM29: 4.91062045 | BN29: 5.038296582 | BO29: 5.169292293 | BP29: 5.303693893 | BQ29: =BP29*(1+BP30) -> 5.441589934 | BR29: 5.583071272 | BS29: 5.728231125 | BT29: 5.877165134 | BU29: 6.029971428 | BV29: 6.186750685 | BW29: 6.347606203 | BX29: 6.512643964 | BY29: 6.681972707 | BZ29: 6.855703998 | CA29: 7.033952301 | CB29: 7.216835061 | CC29: 7.404472773 | CD29: 7.596989065 | CE29: 7.794510781 | CF29: 7.997168061 | CG29: 8.205094431 | CH29: 8.418426886 | CI29: 8.637305985 | CJ29: 8.86187594 | CK29: 9.092284715 | CL29: 9.328684117 | CM29: 9.571229905 | CN29: 9.820081882 | CO29: 10.07540401 | CP29: 10.33736452 | CQ29: 10.60613599 | CR29: 10.88189553 | CS29: 11.16482481 | CT29: 11.45511026 | CU29: 11.75294312 | CV29: 12.05851965 | CW29: 12.37204116 | CX29: 12.69371423 | CY29: 13.0237508
C30: 0.026 | D30: =C30 -> 0.026 | E30: =D30 -> 0.026 | F30: 0.026 | G30: 0.026 | H30: 0.026 | I30: 0.026 | J30: 0.026 | K30: 0.026 | L30: 0.026 | M30: 0.026 | N30: 0.026 | O30: 0.026 | P30: 0.026 | Q30: 0.026 | R30: 0.026 | S30: 0.026 | T30: 0.026 | U30: 0.026 | V30: 0.026 | W30: 0.026 | X30: 0.026 | Y30: 0.026 | Z30: 0.026 | AA30: 0.026 | AB30: 0.026 | AC30: 0.026 | AD30: 0.026 | AE30: 0.026 | AF30: 0.026 | AG30: 0.026 | AH30: 0.026 | AI30: 0.026 | AJ30: 0.026 | AK30: 0.026 | AL30: 0.026 | AM30: 0.026 | AN30: 0.026 | AO30: 0.026 | AP30: 0.026 | AQ30: 0.026 | AR30: 0.026 | AS30: 0.026 | AT30: 0.026 | AU30: 0.026 | AV30: 0.026 | AW30: 0.026 | AX30: 0.026 | AY30: 0.026 | AZ30: 0.026 | BA30: 0.026 | BB30: 0.026 | BC30: 0.026 | BD30: 0.026 | BE30: 0.026 | BF30: 0.026 | BG30: 0.026 | BH30: 0.026 | BI30: 0.026 | BJ30: 0.026 | BK30: 0.026 | BL30: 0.026 | BM30: 0.026 | BN30: 0.026 | BO30: 0.026 | BP30: 0.026 | BQ30: =BP30 -> 0.026 | BR30: 0.026 | BS30: 0.026 | BT30: 0.026 | BU30: 0.026 | BV30: 0.026 | BW30: 0.026 | BX30: 0.026 | BY30: 0.026 | BZ30: 0.026 | CA30: 0.026 | CB30: 0.026 | CC30: 0.026 | CD30: 0.026 | CE30: 0.026 | CF30: 0.026 | CG30: 0.026 | CH30: 0.026 | CI30: 0.026 | CJ30: 0.026 | CK30: 0.026 | CL30: 0.026 | CM30: 0.026 | CN30: 0.026 | CO30: 0.026 | CP30: 0.026 | CQ30: 0.026 | CR30: 0.026 | CS30: 0.026 | CT30: 0.026 | CU30: 0.026 | CV30: 0.026 | CW30: 0.026 | CX30: 0.026 | CY30: =CX30 -> 0.026
B31: =NPV(B29,C29:CL29) -> 36.22040895
C33: =1/(B29-C30) -> 41.66666667 | Q33: Discount rate
Q34: 0.12 | R34: 0.11 | S34: 0.1 | T34: 0.09 | U34: 0.08 | V34: 0.07 | W34: 0.06 | X34: 0.05
B35: dr | C35: start growth | D35: perp | F35: start growth | G35: perp | I35: start growth | J35: perp | L35: start growth | M35: perp | O35: Start growth | P35: 0.15 | Q35: 0.062 | R35: =Q35-($Q35-$T35)/3 -> 0.059 | S35: =R35-($Q35-$T35)/3 -> 0.056 | T35: 0.053 | U35: =T35-($T35-$X35)/4 -> 0.05 | V35: =U35-($T35-$X35)/4 -> 0.047 | W35: =V35-($T35-$X35)/4 -> 0.044 | X35: 0.041
B36: 0.12 | C36: 0.15 | D36: 0.062 | F36: 0.1 | G36: 0.048 | I36: 0.05 | J36: 0.032 | L36: 0.02 | M36: 0.02 | P36: 0.14 | Q36: =Q35-(Q$35-Q$40)/5 -> 0.0592 | R36: =R35-(R$35-R$40)/5 -> 0.0564 | S36: 0.0536 | T36: 0.0508 | U36: 0.048 | V36: 0.0452 | W36: 0.0424 | X36: 0.0396
B37: 0.11 | C37: 0.15 | D37: =D36-(D$36-D$39)/3 -> 0.059 | F37: =F36 -> 0.1 | G37: =G36-(G$36-G$39)/3 -> 0.046 | I37: =I36 -> 0.05 | J37: =J36-(J$36-J$39)/3 -> 0.031 | L37: =L36 -> 0.02 | M37: 0.02 | P37: 0.13 | Q37: =Q36-(Q$35-Q$40)/5 -> 0.0564 | R37: 0.0538 | S37: 0.0512 | T37: 0.0486 | U37: 0.046 | V37: 0.0434 | W37: 0.0408 | X37: 0.0382
B38: 0.1 | C38: 0.15 | D38: =D37-(D$36-D$39)/3 -> 0.056 | F38: =F37 -> 0.1 | G38: =G37-(G$36-G$39)/3 -> 0.044 | I38: =I37 -> 0.05 | J38: =J37-(J$36-J$39)/3 -> 0.03 | L38: =L37 -> 0.02 | M38: 0.02 | P38: 0.12 | Q38: =Q37-(Q$35-Q$40)/5 -> 0.0536 | R38: 0.0512 | S38: 0.0488 | T38: 0.0464 | U38: 0.044 | V38: 0.0416 | W38: 0.0392 | X38: 0.0368
B39: 0.09 | C39: 0.15 | D39: 0.053 | F39: 0.1 | G39: 0.042 | I39: 0.05 | J39: 0.029 | L39: 0.02 | M39: 0.02 | P39: 0.11 | Q39: =Q38-(Q$35-Q$40)/5 -> 0.0508 | R39: 0.0486 | S39: 0.0464 | T39: 0.0442 | U39: 0.042 | V39: 0.0398 | W39: 0.0376 | X39: 0.0354
B40: 0.08 | C40: 0.15 | D40: =D39-(D$39-D$43)/4 -> 0.05 | F40: 0.1 | G40: =G39-(G$39-G$43)/4 -> 0.04 | I40: 0.05 | J40: 0.028 | L40: 0.02 | M40: 0.02 | P40: 0.1 | Q40: 0.048 | R40: =Q40-($Q40-$T40)/3 -> 0.046 | S40: =R40-($Q40-$T40)/3 -> 0.044 | T40: 0.042 | U40: =T40-($T40-$X40)/4 -> 0.04 | V40: =U40-($T40-$X40)/4 -> 0.038 | W40: =V40-($T40-$X40)/4 -> 0.036 | X40: 0.034
B41: 0.07 | C41: 0.15 | D41: =D40-(D$39-D$43)/4 -> 0.047 | F41: 0.1 | G41: =G40-(G$39-G$43)/4 -> 0.038 | I41: 0.05 | J41: =J40-(J$39-J$43)/4 -> 0.02725 | L41: 0.02 | M41: 0.02 | P41: 0.09 | Q41: =Q40-(Q$40-Q$45)/5 -> 0.0448 | R41: =R40-(R$40-R$45)/5 -> 0.043 | S41: 0.0412 | T41: 0.0394 | U41: 0.0376 | V41: 0.03585 | W41: 0.0341 | X41: 0.0324
B42: 0.06 | C42: 0.15 | D42: =D41-(D$39-D$43)/4 -> 0.044 | F42: 0.1 | G42: =G41-(G$39-G$43)/4 -> 0.036 | I42: 0.05 | J42: =J41-(J$39-J$43)/4 -> 0.0265 | L42: 0.02 | M42: 0.02 | P42: 0.08 | Q42: =Q41-(Q$40-Q$45)/5 -> 0.0416 | R42: 0.04 | S42: 0.0384 | T42: 0.0368 | U42: 0.0352 | V42: 0.0337 | W42: 0.0322 | X42: 0.0308
B43: 0.05 | C43: 0.15 | D43: 0.041 | F43: 0.1 | G43: 0.034 | I43: 0.05 | J43: 0.026 | L43: 0.02 | M43: 0.02 | P43: 0.07 | Q43: =Q42-(Q$40-Q$45)/5 -> 0.0384 | R43: 0.037 | S43: 0.0356 | T43: 0.0342 | U43: 0.0328 | V43: 0.03155 | W43: 0.0303 | X43: 0.0292
P44: 0.06 | Q44: =Q43-(Q$40-Q$45)/5 -> 0.0352 | R44: 0.034 | S44: 0.0328 | T44: 0.0316 | U44: 0.0304 | V44: 0.0294 | W44: 0.0284 | X44: 0.0276
A45: Median | B45: =MEDIAN(B36:B43) -> 0.085 | C45: =MEDIAN(C36:C43) -> 0.15 | D45: =ROUND(MEDIAN(D36:D43),2) -> 0.05 | F45: =MEDIAN(F36:F43) -> 0.1 | G45: =ROUND(MEDIAN(G36:G43),2) -> 0.04 | I45: =MEDIAN(I36:I43) -> 0.05 | J45: =ROUND(MEDIAN(J36:J43),2) -> 0.03 | L45: =MEDIAN(L36:L43) -> 0.02 | M45: =ROUND(MEDIAN(M36:M43),2) -> 0.02 | P45: 0.05 | Q45: 0.032 | R45: =Q45-($Q45-$T45)/3 -> 0.031 | S45: =R45-($Q45-$T45)/3 -> 0.03 | T45: 0.029 | U45: 0.028 | V45: =U45-($T45-$X45)/4 -> 0.02725 | W45: =V45-($T45-$X45)/4 -> 0.0265 | X45: 0.026
P46: 0.04 | Q46: =Q45-(Q$45-Q$48)/3 -> 0.028 | R46: =R45-(R$45-R$48)/3 -> 0.02733333333 | S46: 0.02666666667 | T46: 0.026 | U46: 0.02533333333 | V46: 0.02483333333 | W46: 0.02433333333 | X46: 0.024
P47: 0.03 | Q47: =Q46-(Q$45-Q$48)/3 -> 0.024 | R47: 0.02366666667 | S47: 0.02333333333 | T47: 0.023 | U47: 0.02266666667 | V47: 0.02241666667 | W47: 0.02216666667 | X47: 0.022
C48: Perpetuity growth rate consistent with DDM (17 years), linearly stepping down from a high growth rate to | P48: 0.02 | Q48: 0.02 | R48: 0.02 | S48: 0.02 | T48: 0.02 | U48: 0.02 | V48: 0.02 | W48: 0.02 | X48: 0.02
D50: LY Growth | E50: Perpetuity
D51: 0.15 | E51: 0.05
D52: 0.14 | E52: =E51-($E$51-$E$56)/5 -> 0.048 | F52: =E51-($E$51-$E$56)/5
D53: 0.13 | E53: =E52-($E$51-$E$56)/5 -> 0.046
D54: 0.12 | E54: =E53-($E$51-$E$56)/5 -> 0.044
D55: 0.11 | E55: =E54-($E$51-$E$56)/5 -> 0.042
D56: 0.1 | E56: 0.04
D57: 0.09 | E57: =E56-($E$56-$E$61)/COUNT($D$57:$D$61) -> 0.038
D58: 0.08 | E58: =E57-($E$56-$E$61)/COUNT($D$57:$D$61) -> 0.036
D59: 0.07 | E59: =E58-($E$56-$E$61)/COUNT($D$57:$D$61) -> 0.034
D60: 0.06 | E60: =E59-($E$56-$E$61)/COUNT($D$57:$D$61) -> 0.032
D61: 0.05 | E61: 0.03
D62: 0.04 | E62: =E61-($E$61-$E$64)/COUNT($D$62:$D$64) -> 0.02666666667
D63: 0.03 | E63: =E62-($E$61-$E$64)/COUNT($D$62:$D$64) -> 0.02333333333
D64: 0.02 | E64: 0.02

Sheet Additional Data
B7: Perpetuity Growth Estimation
C9: Value | D9: =INDEX(E13:L26,MATCH($L$9,$D$13:$D$26,0),MATCH($H$9,$E$12:$L$12,0)) -> 0.02 | F9: =$E$11 -> Discount rate | H9: =IF(DCF!P47>E12,E12,IF(DCF!P47<L12,L12,ROUND(DCF!P47,2))) -> 0.12 | J9: =$C$13 -> Year 5 FCF Growth | L9: =IF(DCF!T205>D13,D13,IF(DCF!T205<D26,D26,ROUND(DCF!T205,2))) -> 0.02
E11: Discount rate
E12: 0.12 | F12: 0.11 | G12: 0.1 | H12: 0.09 | I12: 0.08 | J12: 0.07 | K12: 0.06 | L12: 0.05
C13: Year 5 FCF Growth | D13: 0.15 | E13: 0.062 | F13: =E13-($E13-$H13)/3 -> 0.059 | G13: =F13-($E13-$H13)/3 -> 0.056 | H13: 0.053 | I13: =H13-($H13-$L13)/4 -> 0.05 | J13: =I13-($H13-$L13)/4 -> 0.047 | K13: =J13-($H13-$L13)/4 -> 0.044 | L13: 0.041
D14: 0.14 | E14: =E13-(E$13-E$18)/5 -> 0.0592 | F14: 0.0564 | G14: 0.0536 | H14: 0.0508 | I14: 0.048 | J14: 0.0452 | K14: 0.0424 | L14: 0.0396
D15: 0.13 | E15: 0.0564 | F15: 0.0538 | G15: 0.0512 | H15: 0.0486 | I15: 0.046 | J15: 0.0434 | K15: 0.0408 | L15: 0.0382
D16: 0.12 | E16: 0.0536 | F16: 0.0512 | G16: 0.0488 | H16: 0.0464 | I16: 0.044 | J16: 0.0416 | K16: 0.0392 | L16: 0.0368
D17: 0.11 | E17: 0.0508 | F17: 0.0486 | G17: 0.0464 | H17: 0.0442 | I17: 0.042 | J17: 0.0398 | K17: 0.0376 | L17: 0.0354
D18: 0.1 | E18: 0.048 | F18: =E18-($E18-$H18)/3 -> 0.046 | G18: =F18-($E18-$H18)/3 -> 0.044 | H18: 0.042 | I18: =H18-($H18-$L18)/4 -> 0.04 | J18: =I18-($H18-$L18)/4 -> 0.038 | K18: =J18-($H18-$L18)/4 -> 0.036 | L18: 0.034
D19: 0.09 | E19: =E18-(E$18-E$23)/5 -> 0.0448 | F19: 0.043 | G19: 0.0412 | H19: 0.0394 | I19: 0.03765 | J19: 0.0359 | K19: 0.03415 | L19: 0.0324
D20: 0.08 | E20: 0.0416 | F20: 0.04 | G20: 0.0384 | H20: 0.0368 | I20: 0.0353 | J20: 0.0338 | K20: 0.0323 | L20: 0.0308
D21: 0.07 | E21: 0.0384 | F21: 0.037 | G21: 0.0356 | H21: 0.0342 | I21: 0.03295 | J21: 0.0317 | K21: 0.03045 | L21: 0.0292
D22: 0.06 | E22: 0.0352 | F22: 0.034 | G22: 0.0328 | H22: 0.0316 | I22: 0.0306 | J22: 0.0296 | K22: 0.0286 | L22: 0.0276
D23: 0.05 | E23: 0.032 | F23: =E23-($E23-$H23)/3 -> 0.031 | G23: =F23-($E23-$H23)/3 -> 0.03 | H23: 0.029 | I23: =H23-($H23-$L23)/4 -> 0.02825 | J23: =I23-($H23-$L23)/4 -> 0.0275 | K23: =J23-($H23-$L23)/4 -> 0.02675 | L23: 0.026
D24: 0.04 | E24: =E23-(E$23-E$26)/3 -> 0.028 | F24: 0.02733333333 | G24: 0.02666666667 | H24: 0.026 | I24: 0.0255 | J24: 0.025 | K24: 0.0245 | L24: 0.024
D25: 0.03 | E25: 0.024 | F25: 0.02366666667 | G25: 0.02333333333 | H25: 0.023 | I25: 0.02275 | J25: 0.0225 | K25: 0.02225 | L25: 0.022
D26: 0.02 | E26: 0.02 | F26: 0.02 | G26: 0.02 | H26: 0.02 | I26: 0.02 | J26: 0.02 | K26: 0.02 | L26: 0.02
B29: Peers Data
C31: Custom | D31: Peers | E31: Rel. Indx. | J31: Ticker | K31: EV/EBITDA | L31: WACC
D33: =IF(LEFT(_xll.BDS(TKR,"BLOOMBERG_PEERS","EndRow=10","Fill=B"),1)="#","",_xll.BDS(TKR,"BLOOMBERG_PEERS","EndRow=10","Fill=B","cols=1;rows=10")) -> 005930 KS | E33: =_xll.BDS(TKR,"RELATIVE_INDICES_LIST","EndRow=10","Fill=B","cols=1;rows=2") -> SPTSX Index | J33: =IF(C33="",IF(D33="",IF(E33="","",E33),D33),C33) -> 005930 KS | K33: =IF(J33="","",IF(LEFT(_xll.BDP(J33&" Equity","EV_TO_T12M_EBITDA","Fill=B"),1)="#",_xll.BDP(J33,"EV_TO_T12M_EBITDA","Fill=B"),_xll.BDP(J33&" Equity","EV_TO_T12M_EBITDA","Fill=B"))) -> 2.102411026 | L33: =IFERROR(_xll.BDP(J33&" Equity","WACC","Fill=B")/100,"") -> 0.1157959063
D34: AAPL US | E34: STINFT Index | J34: AAPL US | K34: =IF(J34="","",IF(LEFT(_xll.BDP(J34&" Equity","EV_TO_T12M_EBITDA","Fill=B"),1)="#",_xll.BDP(J34,"EV_TO_T12M_EBITDA","Fill=B"),_xll.BDP(J34&" Equity","EV_TO_T12M_EBITDA","Fill=B"))) -> 6.046222515 | L34: =IFERROR(_xll.BDP(J34&" Equity","WACC","Fill=B")/100,"") -> 0.09178566364
D35: SHOR US | J35: SHOR US | K35: =IF(J35="","",IF(LEFT(_xll.BDP(J35&" Equity","EV_TO_T12M_EBITDA","Fill=B"),1)="#",_xll.BDP(J35,"EV_TO_T12M_EBITDA","Fill=B"),_xll.BDP(J35&" Equity","EV_TO_T12M_EBITDA","Fill=B"))) ->  | L35: =IFERROR(_xll.BDP(J35&" Equity","WACC","Fill=B")/100,"") -> 0.1118471868
D36: 2498 TT | J36: 2498 TT | K36: =IF(J36="","",IF(LEFT(_xll.BDP(J36&" Equity","EV_TO_T12M_EBITDA","Fill=B"),1)="#",_xll.BDP(J36,"EV_TO_T12M_EBITDA","Fill=B"),_xll.BDP(J36&" Equity","EV_TO_T12M_EBITDA","Fill=B"))) ->  | L36: =IFERROR(_xll.BDP(J36&" Equity","WACC","Fill=B")/100,"") -> 0.1456502598
D37: 066570 KS | J37: 066570 KS | K37: =IF(J37="","",IF(LEFT(_xll.BDP(J37&" Equity","EV_TO_T12M_EBITDA","Fill=B"),1)="#",_xll.BDP(J37,"EV_TO_T12M_EBITDA","Fill=B"),_xll.BDP(J37&" Equity","EV_TO_T12M_EBITDA","Fill=B"))) -> 5.130891232 | L37: =IFERROR(_xll.BDP(J37&" Equity","WACC","Fill=B")/100,"") -> 0.05532010044
D38: SPT LN | J38: SPT LN | K38: =IF(J38="","",IF(LEFT(_xll.BDP(J38&" Equity","EV_TO_T12M_EBITDA","Fill=B"),1)="#",_xll.BDP(J38,"EV_TO_T12M_EBITDA","Fill=B"),_xll.BDP(J38&" Equity","EV_TO_T12M_EBITDA","Fill=B"))) -> 17.24717366 | L38: =IFERROR(_xll.BDP(J38&" Equity","WACC","Fill=B")/100,"") -> 0.07217535704
D39: 6703 JP | J39: 6703 JP | K39: =IF(J39="","",IF(LEFT(_xll.BDP(J39&" Equity","EV_TO_T12M_EBITDA","Fill=B"),1)="#",_xll.BDP(J39,"EV_TO_T12M_EBITDA","Fill=B"),_xll.BDP(J39&" Equity","EV_TO_T12M_EBITDA","Fill=B"))) -> 5.966366472 | L39: =IFERROR(_xll.BDP(J39&" Equity","WACC","Fill=B")/100,"") -> 0.05245734538
D40: MITL US | J40: MITL US | K40: =IF(J40="","",IF(LEFT(_xll.BDP(J40&" Equity","EV_TO_T12M_EBITDA","Fill=B"),1)="#",_xll.BDP(J40,"EV_TO_T12M_EBITDA","Fill=B"),_xll.BDP(J40&" Equity","EV_TO_T12M_EBITDA","Fill=B"))) -> 13.09222874 | L40: =IFERROR(_xll.BDP(J40&" Equity","WACC","Fill=B")/100,"") -> 0.07908505132
D41: SHEN US | J41: SHEN US | K41: =IF(J41="","",IF(LEFT(_xll.BDP(J41&" Equity","EV_TO_T12M_EBITDA","Fill=B"),1)="#",_xll.BDP(J41,"EV_TO_T12M_EBITDA","Fill=B"),_xll.BDP(J41&" Equity","EV_TO_T12M_EBITDA","Fill=B"))) -> 8.321487056 | L41: =IFERROR(_xll.BDP(J41&" Equity","WACC","Fill=B")/100,"") -> 0.08262844468
D42: 3105 JP | J42: 3105 JP | K42: =IF(J42="","",IF(LEFT(_xll.BDP(J42&" Equity","EV_TO_T12M_EBITDA","Fill=B"),1)="#",_xll.BDP(J42,"EV_TO_T12M_EBITDA","Fill=B"),_xll.BDP(J42&" Equity","EV_TO_T12M_EBITDA","Fill=B"))) -> 6.854289271 | L42: =IFERROR(_xll.BDP(J42&" Equity","WACC","Fill=B")/100,"") -> 0.07748104588
J43: Median | K43: =IFERROR(MEDIAN(K33:K42),"NA") -> 6.450255893 | L43: =MEDIAN(L33:L42) -> 0.080856748
J44: IQR | K44: =_xlfn.QUARTILE.EXC(K33:K42,3)-_xlfn.QUARTILE.EXC(K33:K42,1) -> 6.559783276 | L44: =_xlfn.QUARTILE.EXC(L33:L42,3)-_xlfn.QUARTILE.EXC(L33:L42,1) -> 0.04487282375
J45: Up Limit | K45: =IFERROR(_xlfn.QUARTILE.EXC(K33:K42,3)+(1.5*K44),K43) -> 21.73921823 | L45: =_xlfn.QUARTILE.EXC(L33:L42,3)+(1.5*L44) -> 0.1801436023
B48: Net Long Term Deferred Tax Liabilities
E50: -6FY | F50: =DCF!I53 -> -5FY | G50: =DCF!J53 -> -4FY | H50: =DCF!K53 -> -3FY | I50: =DCF!L53 -> -2FY | J50: =DCF!M53 -> -1FY | K50: =DCF!N53 -> -0FY
D51: Field | F51: =DCF!I52 -> Févr 10 A | G51: =DCF!J52 -> Févr 11 A | H51: =DCF!K52 -> Févr 12 A | I51: =DCF!L52 -> Févr 13 A | J51: =DCF!M52 -> Févr 14 A | K51: =DCF!N52 -> Févr 15 A
D52: Liabilities | E52: =_xll.BDP(TKR,"BS_DEFERRED_TAX_LIABILITIES_LT","EQY_FUND_RELATIVE_PERIOD",E$50,"EQY_FUND_CRNCY",CCY,"Fill=0") -> 111.3556722 | F52: =_xll.BDP(TKR,"BS_DEFERRED_TAX_LIABILITIES_LT","EQY_FUND_RELATIVE_PERIOD",F$50,"EQY_FUND_CRNCY",CCY,"Fill=0") -> 149.1014572 | G52: =_xll.BDP(TKR,"BS_DEFERRED_TAX_LIABILITIES_LT","EQY_FUND_RELATIVE_PERIOD",G$50,"EQY_FUND_CRNCY",CCY,"Fill=0") -> 270.618 | H52: =_xll.BDP(TKR,"BS_DEFERRED_TAX_LIABILITIES_LT","EQY_FUND_RELATIVE_PERIOD",H$50,"EQY_FUND_CRNCY",CCY,"Fill=0") -> 229.332 | I52: =_xll.BDP(TKR,"BS_DEFERRED_TAX_LIABILITIES_LT","EQY_FUND_RELATIVE_PERIOD",I$50,"EQY_FUND_CRNCY",CCY,"Fill=0") -> 251.8845 | J52: =_xll.BDP(TKR,"BS_DEFERRED_TAX_LIABILITIES_LT","EQY_FUND_RELATIVE_PERIOD",J$50,"EQY_FUND_CRNCY",CCY,"Fill=0") -> 35.3568 | K52: =_xll.BDP(TKR,"BS_DEFERRED_TAX_LIABILITIES_LT","EQY_FUND_RELATIVE_PERIOD",K$50,"EQY_FUND_CRNCY",CCY,"Fill=0") -> 60.0432
D53: Assets | E53: =_xll.BDP(TKR,"BS_DEFERRED_TAX_ASSETS_LT","EQY_FUND_RELATIVE_PERIOD",E$50,"EQY_FUND_CRNCY",CCY,"Fill=0") -> 0.5117064 | F53: =_xll.BDP(TKR,"BS_DEFERRED_TAX_ASSETS_LT","EQY_FUND_RELATIVE_PERIOD",F$50,"EQY_FUND_CRNCY",CCY,"Fill=0") -> 0 | G53: =_xll.BDP(TKR,"BS_DEFERRED_TAX_ASSETS_LT","EQY_FUND_RELATIVE_PERIOD",G$50,"EQY_FUND_CRNCY",CCY,"Fill=0") -> 0 | H53: =_xll.BDP(TKR,"BS_DEFERRED_TAX_ASSETS_LT","EQY_FUND_RELATIVE_PERIOD",H$50,"EQY_FUND_CRNCY",CCY,"Fill=0") -> 0 | I53: =_xll.BDP(TKR,"BS_DEFERRED_TAX_ASSETS_LT","EQY_FUND_RELATIVE_PERIOD",I$50,"EQY_FUND_CRNCY",CCY,"Fill=0") -> 0 | J53: =_xll.BDP(TKR,"BS_DEFERRED_TAX_ASSETS_LT","EQY_FUND_RELATIVE_PERIOD",J$50,"EQY_FUND_CRNCY",CCY,"Fill=0") -> 0 | K53: =_xll.BDP(TKR,"BS_DEFERRED_TAX_ASSETS_LT","EQY_FUND_RELATIVE_PERIOD",K$50,"EQY_FUND_CRNCY",CCY,"Fill=0") -> 0
D54: Net | E54: =E52-E53 -> 110.8439658 | F54: 149.1014572 | G54: 270.618 | H54: 229.332 | I54: 251.8845 | J54: 35.3568 | K54: 60.0432
D55: Change | F55: =F54-E54 -> 38.2574914 | G55: 121.5165428 | H55: -41.286 | I55: 22.5525 | J55: -216.5277 | K55: 24.6864

Sheet Data (hidden)
B2: Currency Options | E2: Data Options | L2: Market Status
B3: Choice | C3: =VLOOKUP(DCF!$K$6,Data!$B$4:$C$17,2,FALSE) -> CAD | E3: Choice | F3: =VLOOKUP(DCF!K8,Data!E4:F5,2,FALSE) -> Y | L3: PR286 | M3: Status | N3: Message
B4: Fundamental | C4: =_xll.BDP(TKR,"EQY_FUND_CRNCY","Fill=B") -> USD | E4: Adjusted (If available) | F4: Y | L4: ACTV | M4: Active | N4: ="" -> 
B5: Trading | C5: =_xll.BDP(TKR,"CRNCY","Fill=B") -> CAD | E5: GAAP | F5: N | L5: DLST | M5: Delisted | N5: ="WARNING: This ticker is"&M5 -> WARNING: This ticker is Delisted
B6: AUD | C6: =B6 -> AUD | L6: ACQU | M6: Acquired | N6: ="WARNING: This company's market status is"&M6 -> WARNING: This company's market status is Acquired
B7: BRL | C7: BRL | E7: Adj Financials Available | F7: =_xll.BDP(TKR,"ADJUSTED_FINANCIALS_INDICATOR") -> Y | L7: UNLS | M7: Unlisted | N7: ="WARNING: This ticker is"&M7 -> WARNING: This ticker is Unlisted
B8: CAD | C8: =B8 -> CAD | L8: SUSP | M8: Suspended | N8: ="WARNING: This ticker is"&M8 -> WARNING: This ticker is Suspended
B9: CHF | C9: CHF | L9: HALT | M9: Halted | N9: ="WARNING: This ticker is"&M9 -> WARNING: This ticker is Halted
B10: DKK | C10: DKK | L10: PRIV | M10: Private Company | N10: ="WARNING: This company's market status is"&M10 -> WARNING: This company's market status is Private Company
B11: EUR | C11: EUR | L11: EXPD | M11: Expired | N11: ="WARNING: This ticker is"&M11 -> WARNING: This ticker is Expired
B12: GBP | C12: GBP | L12: POST | M12: Postponed | N12: ="WARNING: This ticker is"&M12 -> WARNING: This ticker is Postponed
B13: JPY | C13: JPY | L13: PEND | M13: Pending Listing | N13: ="WARNING: This ticker is"&M13 -> WARNING: This ticker is Pending Listing
B14: NOK | C14: NOK | L14: TKCH | M14: Ticker Change | N14: ="WARNING: This ticker has changed. See DES<GO> or CACS<GO> for details." -> WARNING: This ticker has changed. See DES<GO> or CACS<GO> for details.
B15: NZD | C15: NZD | L15: LIQU | M15: Liquidated | N15: ="WARNING: This company's market status is"&M15 -> WARNING: This company's market status is Liquidated
B16: SEK | C16: SEK | L16: INAC | M16: Inactive | N16: ="WARNING: This ticker is"&M16 -> WARNING: This ticker is Inactive
B17: USD | C17: USD | L17: WHIS | M17: When Issued | N17: ="WARNING: This ticker's market status is"&M17 -> WARNING: This ticker's market status is When Issued
L18: PSYM | M18: Pending Symbol | N18: WARNING: This ticker's market status is Pending Symbol
L19: OInd | M19: Opening Auction | N19: WARNING: This ticker's market status is Opening Auction
L20: CInd | M20: Closing Auction | N20: WARNING: This ticker's market status is Closing Auction
L21: Auct | M21: Auction | N21: WARNING: This ticker's market status is Auction
L22: IMRK | M22: Indicated Market | N22: WARNING: This ticker's market status is Indicated Market
L23: OPDL | M23: Opening Delay | N23: WARNING: This ticker's market status is Opening Delay
L24: NOOP | M24: No Open, No Resume | N24: WARNING: This ticker's market status is No Open, No Resume
L25: PIND | M25: Price Indication | N25: WARNING: This ticker's market status is Price Indication
L26: TRIN | M26: Trading Range Indication | N26: WARNING: This ticker's market status is Trading Range Indication
B27: Primary periodicity | L27: IMBB | M27: Market Imbalance Buy | N27: WARNING: This ticker's market status is Market Imbalance Buy
B28: =LEFT(_xll.BDP(TKR,"PRIMARY_PERIODICITY","Fill=B"),1) -> Q | C28: ="-0F"&B28 -> -0FQ | L28: IMBS | M28: Market Imbalance Sell | N28: WARNING: This ticker's market status is Market Imbalance Sell
L29: NIMB | M29: No Market Imbalance | N29: WARNING: This ticker's market status is No Market Imbalance
B30: Palette | L30: NOMM | M30: No Market Makers | N30: WARNING: This ticker's market status is No Market Makers
C31: FMT_INP | L31: RSRV | M31: Halted Exceeds Limit | N31: WARNING: This ticker's market status is Halted Exceeds Limit
C32: FMT_SEL | L32: DELT | M32: Security Deleted | N32: WARNING: This ticker's market status is Security Deleted
C33: FMT_ERR | L33: WI | M33: When Issued | N33: WARNING: This ticker's market status is When Issued
L34: DL | M34: Delisted | N34: WARNING: This ticker's market status is Delisted
B35: Description | L35: SC | M35: Script Conversion | N35: WARNING: This ticker's market status is Script Conversion
B36: =_xll.BDS(TKR,"CIE_DES_BULK","Fill=B","cols=1;rows=4") -> BlackBerry Limited designs, manufactures, and markets wireless solutions for the | L36: CA | M36: Any Combination of Cum Remarks | N36: ="WARNING: This ticker's market status is"&M36 -> WARNING: This ticker's market status is Any Combination of Cum Remarks
B37: worldwide mobile communications market. The Company provides platforms and | L37: CD | M37: Cum Dividend | N37: WARNING: This ticker's market status is Cum Dividend
B38: solutions for access to email, phone, SMS messaging, Internet, and | L38: CB | M38: Cum Bonus | N38: WARNING: This ticker's market status is Cum Bonus
B39: Intranet-based applications. | L39: CR | M39: Cum Rights | N39: WARNING: This ticker's market status is Cum Rights
L40: CO | M40: Cum Offer | N40: WARNING: This ticker's market status is Cum Offer
L41: CI | M41: Cum Interest | N41: WARNING: This ticker's market status is Cum Interest
L42: CE | M42: Cum Entitlement | N42: WARNING: This ticker's market status is Cum Entitlement
L43: XA | M43: Any Combination of Ex Remarks | N43: WARNING: This ticker's market status is Any Combination of Ex Remarks
L44: XD | M44: Ex Dividend | N44: WARNING: This ticker's market status is Ex Dividend
L45: XB | M45: Ex Bonus | N45: ="WARNING: This ticker's market status is"&M45 -> WARNING: This ticker's market status is Ex Bonus
L46: XR | M46: Ex Rights | N46: ="WARNING: This ticker's market status is"&M46 -> WARNING: This ticker's market status is Ex Rights
L47: XL | M47: Ex Liquidation | N47: ="WARNING: This ticker's market status is"&M47 -> WARNING: This ticker's market status is Ex Liquidation
L48: XS | M48: Ex Stock Distribution | N48: WARNING: This ticker's market status is Ex Stock Distribution
L49: XP | M49: Ex Repayment of Capital | N49: WARNING: This ticker's market status is Ex Repayment of Capital
L50: ST | M50: Stabilization Indicator | N50: WARNING: This ticker's market status is Stabilization Indicator
L51: SP | M51: Stock Split | N51: WARNING: This ticker's market status is Stock Split
L52: XDXR | M52: Ex Dividend/Ex Rights | N52: WARNING: This ticker's market status is Ex Dividend/Ex Rights
L53: PRNA | M53: Price Not Available | N53: WARNING: This ticker's market status is Price Not Available
L54: INFO | M54: Additional Information on DES | N54: WARNING: This ticker's market status is Additional Information on DES
L55: PREN | M55: PreNotice | N55: WARNING: This ticker's market status is PreNotice
L56: RSUS | M56: Suspended by the Regulator | N56: WARNING: This ticker's market status is Suspended by the Regulator
L57: SUSH | M57: Short Term Suspension | N57: WARNING: This ticker's market status is Short Term Suspension
L58: AHLT | M58: Authorized Halt | N58: WARNING: This ticker's market status is Authorized Halt

Sheet BBG_DATA (hidden)
A1: =COUNTIF(3:100,"#N/A Requesting Data...") -> 0
B2: 1 | C2: 2 | D2: 3 | E2: 4 | F2: 5 | G2: 6
A3: Best Sales | B3: =_xll.BDP(TKR,"BEST_SALES","BEST_FPERIOD_OVERRIDE",B$2&"FY","EQY_FUND_CRNCY",CCY) -> 2855.124 | C3: =_xll.BDP(TKR,"BEST_SALES","BEST_FPERIOD_OVERRIDE",C$2&"FY","EQY_FUND_CRNCY",CCY) -> 2643.545 | D3: =_xll.BDP(TKR,"BEST_SALES","BEST_FPERIOD_OVERRIDE",D$2&"FY","EQY_FUND_CRNCY",CCY) -> 2216.876 | E3: =_xll.BDP(TKR,"BEST_SALES","BEST_FPERIOD_OVERRIDE",E$2&"FY","EQY_FUND_CRNCY",CCY) -> #N/A N/A | F3: =_xll.BDP(TKR,"BEST_SALES","BEST_FPERIOD_OVERRIDE",F$2&"FY","EQY_FUND_CRNCY",CCY) -> #N/A N/A | G3: =_xll.BDP(TKR,"BEST_SALES","BEST_FPERIOD_OVERRIDE",G$2&"FY","EQY_FUND_CRNCY",CCY) -> #N/A N/A
A4: Best EPS LTG | B4: =_xll.BDP(TKR,"BEST_EST_LONG_TERM_GROWTH") -> -20.402
A5: Best Gross Margin | B5: =_xll.BDP(TKR,"BEST_GROSS_MARGIN","BEST_FPERIOD_OVERRIDE",B$2&"FY","EQY_FUND_CRNCY",CCY) -> 45.281 | C5: =_xll.BDP(TKR,"BEST_GROSS_MARGIN","BEST_FPERIOD_OVERRIDE",C$2&"FY","EQY_FUND_CRNCY",CCY) -> 45.204 | D5: =_xll.BDP(TKR,"BEST_GROSS_MARGIN","BEST_FPERIOD_OVERRIDE",D$2&"FY","EQY_FUND_CRNCY",CCY) -> 60.208 | E5: =_xll.BDP(TKR,"BEST_GROSS_MARGIN","BEST_FPERIOD_OVERRIDE",E$2&"FY","EQY_FUND_CRNCY",CCY) -> #N/A N/A | F5: =_xll.BDP(TKR,"BEST_GROSS_MARGIN","BEST_FPERIOD_OVERRIDE",F$2&"FY","EQY_FUND_CRNCY",CCY) -> #N/A N/A | G5: =_xll.BDP(TKR,"BEST_GROSS_MARGIN","BEST_FPERIOD_OVERRIDE",G$2&"FY","EQY_FUND_CRNCY",CCY) -> #N/A N/A
A6: Best OPP | B6: =_xll.BDP(TKR,"BEST_OPP","BEST_FPERIOD_OVERRIDE",B$2&"FY","EQY_FUND_CRNCY",CCY) -> -249.618 | C6: =_xll.BDP(TKR,"BEST_OPP","BEST_FPERIOD_OVERRIDE",C$2&"FY","EQY_FUND_CRNCY",CCY) -> -310.981 | D6: =_xll.BDP(TKR,"BEST_OPP","BEST_FPERIOD_OVERRIDE",D$2&"FY","EQY_FUND_CRNCY",CCY) -> -368.807 | E6: =_xll.BDP(TKR,"BEST_OPP","BEST_FPERIOD_OVERRIDE",E$2&"FY","EQY_FUND_CRNCY",CCY) -> #N/A N/A | F6: =_xll.BDP(TKR,"BEST_OPP","BEST_FPERIOD_OVERRIDE",F$2&"FY","EQY_FUND_CRNCY",CCY) -> #N/A N/A | G6: =_xll.BDP(TKR,"BEST_OPP","BEST_FPERIOD_OVERRIDE",G$2&"FY","EQY_FUND_CRNCY",CCY) -> #N/A N/A
A7: Best EBITDA | B7: =_xll.BDP(TKR,"BEST_EBITDA","BEST_FPERIOD_OVERRIDE",B$2&"FY","EQY_FUND_CRNCY",CCY) -> 472.997 | C7: =_xll.BDP(TKR,"BEST_EBITDA","BEST_FPERIOD_OVERRIDE",C$2&"FY","EQY_FUND_CRNCY",CCY) -> 412.29 | D7: =_xll.BDP(TKR,"BEST_EBITDA","BEST_FPERIOD_OVERRIDE",D$2&"FY","EQY_FUND_CRNCY",CCY) -> 267.751 | E7: =_xll.BDP(TKR,"BEST_EBITDA","BEST_FPERIOD_OVERRIDE",E$2&"FY","EQY_FUND_CRNCY",CCY) -> #N/A N/A | F7: =_xll.BDP(TKR,"BEST_EBITDA","BEST_FPERIOD_OVERRIDE",F$2&"FY","EQY_FUND_CRNCY",CCY) -> #N/A N/A | G7: =_xll.BDP(TKR,"BEST_EBITDA","BEST_FPERIOD_OVERRIDE",G$2&"FY","EQY_FUND_CRNCY",CCY) -> #N/A N/A
A8: Best CAPEX | B8: =_xll.BDP(TKR,"BEST_CAPEX","BEST_FPERIOD_OVERRIDE",B$2&"FY","EQY_FUND_CRNCY",CCY) -> -77.807 | C8: =_xll.BDP(TKR,"BEST_CAPEX","BEST_FPERIOD_OVERRIDE",C$2&"FY","EQY_FUND_CRNCY",CCY) -> -130.473 | D8: =_xll.BDP(TKR,"BEST_CAPEX","BEST_FPERIOD_OVERRIDE",D$2&"FY","EQY_FUND_CRNCY",CCY) -> -191.809 | E8: =_xll.BDP(TKR,"BEST_CAPEX","BEST_FPERIOD_OVERRIDE",E$2&"FY","EQY_FUND_CRNCY",CCY) -> #N/A N/A | F8: =_xll.BDP(TKR,"BEST_CAPEX","BEST_FPERIOD_OVERRIDE",F$2&"FY","EQY_FUND_CRNCY",CCY) -> #N/A N/A | G8: =_xll.BDP(TKR,"BEST_CAPEX","BEST_FPERIOD_OVERRIDE",G$2&"FY","EQY_FUND_CRNCY",CCY) -> #N/A N/A
B10: =C10-1 -> -5 | C10: =D10-1 -> -4 | D10: =E10-1 -> -3 | E10: =F10-1 -> -2 | F10: =G10-1 -> -1 | G10: -0
A11: IS_COMP_SALES | B11: =_xll.BDP(TKR,$A11,"EQY_FUND_RELATIVE_PERIOD",B$10&"FY","EQY_FUND_CRNCY",CCY) -> 16617.00685 | C11: =_xll.BDP(TKR,$A11,"EQY_FUND_RELATIVE_PERIOD",C$10&"FY","EQY_FUND_CRNCY",CCY) -> 20323.48748 | D11: =_xll.BDP(TKR,$A11,"EQY_FUND_RELATIVE_PERIOD",D$10&"FY","EQY_FUND_CRNCY",CCY) -> 18356.39753 | E11: =_xll.BDP(TKR,$A11,"EQY_FUND_RELATIVE_PERIOD",E$10&"FY","EQY_FUND_CRNCY",CCY) -> 11061.33929 | F11: =_xll.BDP(TKR,$A11,"EQY_FUND_RELATIVE_PERIOD",F$10&"FY","EQY_FUND_CRNCY",CCY) -> 7128.981704 | G11: =_xll.BDP(TKR,$A11,"EQY_FUND_RELATIVE_PERIOD",G$10&"FY","EQY_FUND_CRNCY",CCY) -> 3754.077392
A12: SALES_REV_TURN | B12: =_xll.BDP(TKR,$A12,"EQY_FUND_RELATIVE_PERIOD",B$10&"FY","EQY_FUND_CRNCY",CCY) -> 16617.00685 | C12: =_xll.BDP(TKR,$A12,"EQY_FUND_RELATIVE_PERIOD",C$10&"FY","EQY_FUND_CRNCY",CCY) -> 20323.48748 | D12: =_xll.BDP(TKR,$A12,"EQY_FUND_RELATIVE_PERIOD",D$10&"FY","EQY_FUND_CRNCY",CCY) -> 18272.09378 | E12: =_xll.BDP(TKR,$A12,"EQY_FUND_RELATIVE_PERIOD",E$10&"FY","EQY_FUND_CRNCY",CCY) -> 11061.33929 | F12: =_xll.BDP(TKR,$A12,"EQY_FUND_RELATIVE_PERIOD",F$10&"FY","EQY_FUND_CRNCY",CCY) -> 7128.981704 | G12: =_xll.BDP(TKR,$A12,"EQY_FUND_RELATIVE_PERIOD",G$10&"FY","EQY_FUND_CRNCY",CCY) -> 3754.077392
A13: GROSS_PROFIT | B13: =_xll.BDP(TKR,$A13,"EQY_FUND_RELATIVE_PERIOD",B$10&"FY","EQY_FUND_CRNCY",CCY) -> 7316.869807 | C13: =_xll.BDP(TKR,$A13,"EQY_FUND_RELATIVE_PERIOD",C$10&"FY","EQY_FUND_CRNCY",CCY) -> 9009.633649 | D13: =_xll.BDP(TKR,$A13,"EQY_FUND_RELATIVE_PERIOD",D$10&"FY","EQY_FUND_CRNCY",CCY) -> 6521.142951 | E13: =_xll.BDP(TKR,$A13,"EQY_FUND_RELATIVE_PERIOD",E$10&"FY","EQY_FUND_CRNCY",CCY) -> 3430.383736 | F13: =_xll.BDP(TKR,$A13,"EQY_FUND_RELATIVE_PERIOD",F$10&"FY","EQY_FUND_CRNCY",CCY) -> -44.99430695 | G13: =_xll.BDP(TKR,$A13,"EQY_FUND_RELATIVE_PERIOD",G$10&"FY","EQY_FUND_CRNCY",CCY) -> 1805.559261
A14: IS_OPER_INC | B14: =_xll.BDP(TKR,$A14,"EQY_FUND_RELATIVE_PERIOD",B$10&"FY","EQY_FUND_CRNCY",CCY) -> 3598.134286 | C14: =_xll.BDP(TKR,$A14,"EQY_FUND_RELATIVE_PERIOD",C$10&"FY","EQY_FUND_CRNCY",CCY) -> 4732.992815 | D14: =_xll.BDP(TKR,$A14,"EQY_FUND_RELATIVE_PERIOD",D$10&"FY","EQY_FUND_CRNCY",CCY) -> 1484.737794 | E14: =_xll.BDP(TKR,$A14,"EQY_FUND_RELATIVE_PERIOD",E$10&"FY","EQY_FUND_CRNCY",CCY) -> -1233.699451 | F14: =_xll.BDP(TKR,$A14,"EQY_FUND_RELATIVE_PERIOD",F$10&"FY","EQY_FUND_CRNCY",CCY) -> -7495.214435 | G14: =_xll.BDP(TKR,$A14,"EQY_FUND_RELATIVE_PERIOD",G$10&"FY","EQY_FUND_CRNCY",CCY) -> -476.1543439
A15: EFF_TAX_RATE | B15: =_xll.BDP(TKR,$A15,"EQY_FUND_RELATIVE_PERIOD",B$10&"FY","EQY_FUND_CRNCY",CCY) -> 24.77769852 | C15: =_xll.BDP(TKR,$A15,"EQY_FUND_RELATIVE_PERIOD",C$10&"FY","EQY_FUND_CRNCY",CCY) -> 26.5503876 | D15: =_xll.BDP(TKR,$A15,"EQY_FUND_RELATIVE_PERIOD",D$10&"FY","EQY_FUND_CRNCY",CCY) -> 22.85902503 | E15: =_xll.BDP(TKR,$A15,"EQY_FUND_RELATIVE_PERIOD",E$10&"FY","EQY_FUND_CRNCY",CCY) -> #N/A N/A | F15: =_xll.BDP(TKR,$A15,"EQY_FUND_RELATIVE_PERIOD",F$10&"FY","EQY_FUND_CRNCY",CCY) -> #N/A N/A | G15: =_xll.BDP(TKR,$A15,"EQY_FUND_RELATIVE_PERIOD",G$10&"FY","EQY_FUND_CRNCY",CCY) -> #N/A N/A
A16: CF_DEPR_AMORT | B16: =_xll.BDP(TKR,$A16,"EQY_FUND_RELATIVE_PERIOD",B$10&"FY","EQY_FUND_CRNCY",CCY) -> 684.1185802 | C16: =_xll.BDP(TKR,$A16,"EQY_FUND_RELATIVE_PERIOD",C$10&"FY","EQY_FUND_CRNCY",CCY) -> 946.3943788 | D16: =_xll.BDP(TKR,$A16,"EQY_FUND_RELATIVE_PERIOD",D$10&"FY","EQY_FUND_CRNCY",CCY) -> 1510.524824 | E16: =_xll.BDP(TKR,$A16,"EQY_FUND_RELATIVE_PERIOD",E$10&"FY","EQY_FUND_CRNCY",CCY) -> 1915.9802 | F16: =_xll.BDP(TKR,$A16,"EQY_FUND_RELATIVE_PERIOD",F$10&"FY","EQY_FUND_CRNCY",CCY) -> 1328.901624 | G16: =_xll.BDP(TKR,$A16,"EQY_FUND_RELATIVE_PERIOD",G$10&"FY","EQY_FUND_CRNCY",CCY) -> 781.2083088
A17: CF_CAP_EXPEND_PRPTY_ADD | B17: =_xll.BDP(TKR,$A17,"EQY_FUND_RELATIVE_PERIOD",B$10&"FY","EQY_FUND_CRNCY",CCY) -> -1121.729507 | C17: =_xll.BDP(TKR,$A17,"EQY_FUND_RELATIVE_PERIOD",C$10&"FY","EQY_FUND_CRNCY",CCY) -> -1060.737605 | D17: =_xll.BDP(TKR,$A17,"EQY_FUND_RELATIVE_PERIOD",D$10&"FY","EQY_FUND_CRNCY",CCY) -> -894.6115501 | E17: =_xll.BDP(TKR,$A17,"EQY_FUND_RELATIVE_PERIOD",E$10&"FY","EQY_FUND_CRNCY",CCY) -> -417.5598141 | F17: =_xll.BDP(TKR,$A17,"EQY_FUND_RELATIVE_PERIOD",F$10&"FY","EQY_FUND_CRNCY",CCY) -> -296.1253225 | G17: =_xll.BDP(TKR,$A17,"EQY_FUND_RELATIVE_PERIOD",G$10&"FY","EQY_FUND_CRNCY",CCY) -> -97.9324537
A18: NET_WORKING_CAPITAL_INVESTMENT | B18: =_xll.BDP(TKR,$A18,"EQY_FUND_RELATIVE_PERIOD",B$10&"FY","EQY_FUND_CRNCY",CCY) -> 275.6524026 | C18: =_xll.BDP(TKR,$A18,"EQY_FUND_RELATIVE_PERIOD",C$10&"FY","EQY_FUND_CRNCY",CCY) -> 262.377878 | D18: =_xll.BDP(TKR,$A18,"EQY_FUND_RELATIVE_PERIOD",D$10&"FY","EQY_FUND_CRNCY",CCY) -> 169.0335 | E18: =_xll.BDP(TKR,$A18,"EQY_FUND_RELATIVE_PERIOD",E$10&"FY","EQY_FUND_CRNCY",CCY) -> -597.3261 | F18: =_xll.BDP(TKR,$A18,"EQY_FUND_RELATIVE_PERIOD",F$10&"FY","EQY_FUND_CRNCY",CCY) -> -1178.9283 | G18: =_xll.BDP(TKR,$A18,"EQY_FUND_RELATIVE_PERIOD",G$10&"FY","EQY_FUND_CRNCY",CCY) -> -434.0623
A19: IS_COGS_TO_FE_AND_PP_AND_G | B19: =_xll.BDP(TKR,$A19,"EQY_FUND_RELATIVE_PERIOD",B$10&"FY","EQY_FUND_CRNCY",CCY) -> 9300.13704 | C19: =_xll.BDP(TKR,$A19,"EQY_FUND_RELATIVE_PERIOD",C$10&"FY","EQY_FUND_CRNCY",CCY) -> 11313.85384 | D19: =_xll.BDP(TKR,$A19,"EQY_FUND_RELATIVE_PERIOD",D$10&"FY","EQY_FUND_CRNCY",CCY) -> 11750.95083 | E19: =_xll.BDP(TKR,$A19,"EQY_FUND_RELATIVE_PERIOD",E$10&"FY","EQY_FUND_CRNCY",CCY) -> 7630.95555 | F19: =_xll.BDP(TKR,$A19,"EQY_FUND_RELATIVE_PERIOD",F$10&"FY","EQY_FUND_CRNCY",CCY) -> 7173.976011 | G19: =_xll.BDP(TKR,$A19,"EQY_FUND_RELATIVE_PERIOD",G$10&"FY","EQY_FUND_CRNCY",CCY) -> 1948.518131
A21: ARD_DEFERRED_UNEARNED_REV_LT | B21: =_xll.BDP(TKR,$A21,"EQY_FUND_RELATIVE_PERIOD",B$10,"EQY_FUND_CRNCY",CCY,"Fill=0") -> 0 | C21: =_xll.BDP(TKR,$A21,"EQY_FUND_RELATIVE_PERIOD",C$10,"EQY_FUND_CRNCY",CCY,"Fill=0") -> 0 | D21: =_xll.BDP(TKR,$A21,"EQY_FUND_RELATIVE_PERIOD",D$10,"EQY_FUND_CRNCY",CCY,"Fill=0") -> 0 | E21: =_xll.BDP(TKR,$A21,"EQY_FUND_RELATIVE_PERIOD",E$10,"EQY_FUND_CRNCY",CCY,"Fill=0") -> 0 | F21: =_xll.BDP(TKR,$A21,"EQY_FUND_RELATIVE_PERIOD",F$10,"EQY_FUND_CRNCY",CCY,"Fill=0") -> 0 | G21: =_xll.BDP(TKR,$A21,"EQY_FUND_RELATIVE_PERIOD",G$10,"EQY_FUND_CRNCY",CCY,"Fill=0") -> 0
A22: ARD_DEFERRED_INC_TAX_ASSET_LT | B22: =_xll.BDP(TKR,$A22,"EQY_FUND_RELATIVE_PERIOD",B$10,"EQY_FUND_CRNCY",CCY,"Fill=0") -> 0 | C22: =_xll.BDP(TKR,$A22,"EQY_FUND_RELATIVE_PERIOD",C$10,"EQY_FUND_CRNCY",CCY,"Fill=0") -> 0 | D22: =_xll.BDP(TKR,$A22,"EQY_FUND_RELATIVE_PERIOD",D$10,"EQY_FUND_CRNCY",CCY,"Fill=0") -> 0 | E22: =_xll.BDP(TKR,$A22,"EQY_FUND_RELATIVE_PERIOD",E$10,"EQY_FUND_CRNCY",CCY,"Fill=0") -> 0 | F22: =_xll.BDP(TKR,$A22,"EQY_FUND_RELATIVE_PERIOD",F$10,"EQY_FUND_CRNCY",CCY,"Fill=0") -> 0 | G22: =_xll.BDP(TKR,$A22,"EQY_FUND_RELATIVE_PERIOD",G$10,"EQY_FUND_CRNCY",CCY,"Fill=0") -> 0
A24: CRNCY | B24: =_xll.BDP(TKR,$A$24) -> CAD
A26: =_xll.BDS(TKR,"BLOOMBERG_PEERS","EndRow=10","Fill=B","cols=1;rows=10") -> 005930 KS | B26: =IF(ISBLANK(A26),"",_xll.BDP(A26&" Equity","EV_TO_T12M_EBITDA","Fill=B")) -> 2.102411026 | C26: =IFERROR(_xll.BDP(A26&" Equity","WACC","Fill=B")/100,"") -> 0.1157959063
A27: AAPL US | B27: =IF(ISBLANK(A27),"",_xll.BDP(A27&" Equity","EV_TO_T12M_EBITDA","Fill=B")) -> 6.046222515 | C27: =IFERROR(_xll.BDP(A27&" Equity","WACC","Fill=B")/100,"") -> 0.09178566364
A28: SHOR US | B28: =IF(ISBLANK(A28),"",_xll.BDP(A28&" Equity","EV_TO_T12M_EBITDA","Fill=B")) ->  | C28: =IFERROR(_xll.BDP(A28&" Equity","WACC","Fill=B")/100,"") -> 0.1118471868
A29: 2498 TT | B29: =IF(ISBLANK(A29),"",_xll.BDP(A29&" Equity","EV_TO_T12M_EBITDA","Fill=B")) ->  | C29: =IFERROR(_xll.BDP(A29&" Equity","WACC","Fill=B")/100,"") -> 0.1456502598
A30: 066570 KS | B30: =IF(ISBLANK(A30),"",_xll.BDP(A30&" Equity","EV_TO_T12M_EBITDA","Fill=B")) -> 5.130891232 | C30: =IFERROR(_xll.BDP(A30&" Equity","WACC","Fill=B")/100,"") -> 0.05532010044
A31: SPT LN | B31: =IF(ISBLANK(A31),"",_xll.BDP(A31&" Equity","EV_TO_T12M_EBITDA","Fill=B")) -> 17.24717366 | C31: =IFERROR(_xll.BDP(A31&" Equity","WACC","Fill=B")/100,"") -> 0.07217535704
A32: 6703 JP | B32: =IF(ISBLANK(A32),"",_xll.BDP(A32&" Equity","EV_TO_T12M_EBITDA","Fill=B")) -> 5.966366472 | C32: =IFERROR(_xll.BDP(A32&" Equity","WACC","Fill=B")/100,"") -> 0.05245734538
A33: MITL US | B33: =IF(ISBLANK(A33),"",_xll.BDP(A33&" Equity","EV_TO_T12M_EBITDA","Fill=B")) -> 13.09222874 | C33: =IFERROR(_xll.BDP(A33&" Equity","WACC","Fill=B")/100,"") -> 0.07908505132
A34: SHEN US | B34: =IF(ISBLANK(A34),"",_xll.BDP(A34&" Equity","EV_TO_T12M_EBITDA","Fill=B")) -> 8.321487056 | C34: =IFERROR(_xll.BDP(A34&" Equity","WACC","Fill=B")/100,"") -> 0.08262844468
A35: 3105 JP | B35: =IF(ISBLANK(A35),"",_xll.BDP(A35&" Equity","EV_TO_T12M_EBITDA","Fill=B")) -> 6.854289271 | C35: =IFERROR(_xll.BDP(A35&" Equity","WACC","Fill=B")/100,"") -> 0.07748104588

Sheet Help
D10: Application Objective: The Bloomberg Excel Discounted Cash Flow (XDCF) allows you to estimate the value of a stock based on the present value of projected free cash flows.
D13: A. Step-by-step User Guide
D15: General color scheme: | H15: <-- User Input
H16: <-- Forecast outlier
H17: <-- Current selection (while forecasting future cash flows)
D19: Summary
D42: Inputs
D66: Outputs
D114: B. Features
D116: Overview
D126: Forecasting Free Cash Flows
D151: Discounting
D160: Sensitivity
D178: C. FAQ
